Body Name,Vendor Number,Vendor Name,Cost Centre,Service Label,BV Code,Amount,Period
Slough Borough Council,806064,24 X 7 Buckinghamshire Ltd,F123,Education & Inclusion,Supplies and Services,"1,104.75",Aug-22
Slough Borough Council,806064,24 X 7 Buckinghamshire Ltd,F123,Education & Inclusion,Supplies and Services,"1,336.00",Aug-22
Slough Borough Council,1055,A J Chapman,F123,Education & Inclusion,Supplies and Services,"58,909.25",Aug-22
Slough Borough Council,1055,A J Chapman,F123,Education & Inclusion,Supplies and Services,512.60,Aug-22
Slough Borough Council,1055,A J Chapman,F123,Education & Inclusion,Supplies and Services,"1,089.00",Aug-22
Slough Borough Council,1055,A J Chapman,F123,Education & Inclusion,Supplies and Services,"2,970.00",Aug-22
Slough Borough Council,1055,A J Chapman,F123,Education & Inclusion,Supplies and Services,"41,812.64",Aug-22
Slough Borough Council,536,Ability Housing Association,M42E,Adult Social Care Operations,Supplies and Services,"2,851.86",Aug-22
Slough Borough Council,536,Ability Housing Association,M42E,Adult Social Care Operations,Supplies and Services,"3,490.57",Aug-22
Slough Borough Council,536,Ability Housing Association,M42E,Adult Social Care Operations,Supplies and Services,"2,630.94",Aug-22
Slough Borough Council,536,Ability Housing Association,M42E,Adult Social Care Operations,Supplies and Services,"1,855.72",Aug-22
Slough Borough Council,536,Ability Housing Association,M42E,Adult Social Care Operations,Supplies and Services,"1,272.30",Aug-22
Slough Borough Council,536,Ability Housing Association,M42E,Adult Social Care Operations,Supplies and Services,"3,076.80",Aug-22
Slough Borough Council,536,Ability Housing Association,M42E,Adult Social Care Operations,Supplies and Services,"2,530.52",Aug-22
Slough Borough Council,536,Ability Housing Association,M42E,Adult Social Care Operations,Supplies and Services,"2,758.46",Aug-22
Slough Borough Council,536,Ability Housing Association,M42E,Adult Social Care Operations,Supplies and Services,"2,517.48",Aug-22
Slough Borough Council,536,Ability Housing Association,M42E,Adult Social Care Operations,Supplies and Services,"2,698.23",Aug-22
Slough Borough Council,536,Ability Housing Association,M42E,Adult Social Care Operations,Supplies and Services,"2,675.13",Aug-22
Slough Borough Council,536,Ability Housing Association,M42E,Adult Social Care Operations,Supplies and Services,"1,446.01",Aug-22
Slough Borough Council,536,Ability Housing Association,M42E,Adult Social Care Operations,Supplies and Services,"1,894.89",Aug-22
Slough Borough Council,536,Ability Housing Association,M42E,Adult Social Care Operations,Supplies and Services,"2,437.14",Aug-22
Slough Borough Council,536,Ability Housing Association,M42E,Adult Social Care Operations,Supplies and Services,"3,039.65",Aug-22
Slough Borough Council,536,Ability Housing Association,M42E,Adult Social Care Operations,Supplies and Services,"2,731.36",Aug-22
Slough Borough Council,536,Ability Housing Association,M42E,Adult Social Care Operations,Supplies and Services,"2,691.19",Aug-22
Slough Borough Council,536,Ability Housing Association,M44E,Adult Social Care Operations,Supplies and Services,"2,221.24",Aug-22
Slough Borough Council,536,Ability Housing Association,M44E,Adult Social Care Operations,Supplies and Services,"2,301.58",Aug-22
Slough Borough Council,536,Ability Housing Association,M44E,Adult Social Care Operations,Supplies and Services,"1,815.55",Aug-22
Slough Borough Council,536,Ability Housing Association,M44E,Adult Social Care Operations,Supplies and Services,"1,883.84",Aug-22
Slough Borough Council,808047,Access UK Limited,C529,Community,Supplies and Services,"20,816.27",Aug-22
Slough Borough Council,3292,Achieving For Children,F416,Education & Inclusion,Supplies and Services,"63,580.00",Aug-22
Slough Borough Council,807554,Acorn Care & Education Ltd,F462,Children & Families,Supplies and Services,"14,274.80",Aug-22
Slough Borough Council,807554,Acorn Care & Education Ltd,F462,Children & Families,Supplies and Services,"14,532.94",Aug-22
Slough Borough Council,807554,Acorn Care & Education Ltd,F462,Children & Families,Supplies and Services,"21,645.81",Aug-22
Slough Borough Council,807554,Acorn Care & Education Ltd,F462,Children & Families,Supplies and Services,"14,274.80",Aug-22
Slough Borough Council,807554,Acorn Care & Education Ltd,F462,Children & Families,Supplies and Services,"4,074.29",Aug-22
Slough Borough Council,807554,Acorn Care & Education Ltd,F462,Children & Families,Supplies and Services,"22,490.12",Aug-22
Slough Borough Council,807554,Acorn Care & Education Ltd,F462,Children & Families,Supplies and Services,"-3,693.45",Aug-22
Slough Borough Council,807554,Acorn Care & Education Ltd,F462,Children & Families,Supplies and Services,"4,827.14",Aug-22
Slough Borough Council,807554,Acorn Care & Education Ltd,F558,Children & Families,Supplies and Services,"2,332.00",Aug-22
Slough Borough Council,807554,Acorn Care & Education Ltd,F558,Children & Families,Supplies and Services,"2,332.00",Aug-22
Slough Borough Council,807554,Acorn Care & Education Ltd,F558,Children & Families,Supplies and Services,"2,332.00",Aug-22
Slough Borough Council,807554,Acorn Care & Education Ltd,F558,Children & Families,Supplies and Services,"2,332.00",Aug-22
Slough Borough Council,807554,Acorn Care & Education Ltd,F558,Children & Families,Supplies and Services,"2,332.00",Aug-22
Slough Borough Council,807554,Acorn Care & Education Ltd,F558,Children & Families,Supplies and Services,"2,332.00",Aug-22
Slough Borough Council,807554,Acorn Care & Education Ltd,F558,Children & Families,Supplies and Services,696.00,Aug-22
Slough Borough Council,807554,Acorn Care & Education Ltd,F558,Children & Families,Supplies and Services,"2,332.00",Aug-22
Slough Borough Council,807554,Acorn Care & Education Ltd,F558,Children & Families,Supplies and Services,"2,332.00",Aug-22
Slough Borough Council,807554,Acorn Care & Education Ltd,F558,Children & Families,Supplies and Services,"2,332.00",Aug-22
Slough Borough Council,807554,Acorn Care & Education Ltd,F558,Children & Families,Supplies and Services,"2,332.00",Aug-22
Slough Borough Council,807554,Acorn Care & Education Ltd,F558,Children & Families,Supplies and Services,"2,332.00",Aug-22
Slough Borough Council,807554,Acorn Care & Education Ltd,F558,Children & Families,Supplies and Services,"2,332.00",Aug-22
Slough Borough Council,807554,Acorn Care & Education Ltd,F558,Children & Families,Supplies and Services,"1,392.00",Aug-22
Slough Borough Council,807554,Acorn Care & Education Ltd,F558,Children & Families,Supplies and Services,"2,332.00",Aug-22
Slough Borough Council,807554,Acorn Care & Education Ltd,F558,Children & Families,Supplies and Services,"2,332.00",Aug-22
Slough Borough Council,807554,Acorn Care & Education Ltd,F558,Children & Families,Supplies and Services,"2,332.00",Aug-22
Slough Borough Council,807554,Acorn Care & Education Ltd,F558,Children & Families,Supplies and Services,"2,332.00",Aug-22
Slough Borough Council,807554,Acorn Care & Education Ltd,F558,Children & Families,Supplies and Services,"1,914.00",Aug-22
Slough Borough Council,807554,Acorn Care & Education Ltd,F558,Children & Families,Supplies and Services,696.00,Aug-22
Slough Borough Council,807554,Acorn Care & Education Ltd,F558,Children & Families,Supplies and Services,"2,332.00",Aug-22
Slough Borough Council,807554,Acorn Care & Education Ltd,F558,Children & Families,Supplies and Services,"1,914.00",Aug-22
Slough Borough Council,807554,Acorn Care & Education Ltd,F558,Children & Families,Supplies and Services,"1,273.00",Aug-22
Slough Borough Council,807554,Acorn Care & Education Ltd,F558,Children & Families,Supplies and Services,"2,332.00",Aug-22
Slough Borough Council,807554,Acorn Care & Education Ltd,F558,Children & Families,Supplies and Services,"1,914.00",Aug-22
Slough Borough Council,807554,Acorn Care & Education Ltd,F558,Children & Families,Supplies and Services,696.00,Aug-22
Slough Borough Council,807554,Acorn Care & Education Ltd,F558,Children & Families,Supplies and Services,"2,332.00",Aug-22
Slough Borough Council,807554,Acorn Care & Education Ltd,F558,Children & Families,Supplies and Services,"1,272.00",Aug-22
Slough Borough Council,807554,Acorn Care & Education Ltd,F558,Children & Families,Supplies and Services,"2,332.00",Aug-22
Slough Borough Council,807554,Acorn Care & Education Ltd,F558,Children & Families,Supplies and Services,"2,332.00",Aug-22
Slough Borough Council,807554,Acorn Care & Education Ltd,F558,Children & Families,Supplies and Services,"2,332.00",Aug-22
Slough Borough Council,807554,Acorn Care & Education Ltd,F558,Children & Families,Supplies and Services,"2,332.00",Aug-22
Slough Borough Council,807554,Acorn Care & Education Ltd,F558,Children & Families,Supplies and Services,"1,914.00",Aug-22
Slough Borough Council,1506,Acorns Project Limited,P212,Capital,Capital Charges,800.00,Aug-22
Slough Borough Council,1506,Acorns Project Limited,P579,Capital,Capital Charges,"1,000.00",Aug-22
Slough Borough Council,2855,Advance Housing & Support Ltd,M42F,Adult Social Care Operations,Supplies and Services,"1,609.52",Aug-22
Slough Borough Council,2855,Advance Housing & Support Ltd,M42F,Adult Social Care Operations,Supplies and Services,"1,902.16",Aug-22
Slough Borough Council,2855,Advance Housing & Support Ltd,M42F,Adult Social Care Operations,Supplies and Services,"1,097.40",Aug-22
Slough Borough Council,2855,Advance Housing & Support Ltd,M42F,Adult Social Care Operations,Supplies and Services,"1,170.56",Aug-22
Slough Borough Council,2135,Adventure Learning Childcare Limited,F909,Children & Families,Supplies and Services,"11,268.87",Aug-22
Slough Borough Council,805178,AFM Transport Limited,D880,Place Operations,Supplies and Services,"1,997.12",Aug-22
Slough Borough Council,805178,AFM Transport Limited,D880,Place Operations,Supplies and Services,"9,999.34",Aug-22
Slough Borough Council,805178,AFM Transport Limited,D880,Place Operations,Supplies and Services,"2,140.00",Aug-22
Slough Borough Council,805178,AFM Transport Limited,D880,Place Operations,Supplies and Services,"13,989.06",Aug-22
Slough Borough Council,805178,AFM Transport Limited,D880,Place Operations,Supplies and Services,"2,455.20",Aug-22
Slough Borough Council,805178,AFM Transport Limited,D880,Place Operations,Supplies and Services,794.00,Aug-22
Slough Borough Council,805178,AFM Transport Limited,D880,Place Operations,Supplies and Services,"7,354.36",Aug-22
Slough Borough Council,805178,AFM Transport Limited,D880,Place Operations,Supplies and Services,"4,265.12",Aug-22
Slough Borough Council,805178,AFM Transport Limited,D880,Place Operations,Supplies and Services,879.00,Aug-22
Slough Borough Council,805178,AFM Transport Limited,D880,Place Operations,Supplies and Services,"1,013.10",Aug-22
Slough Borough Council,805178,AFM Transport Limited,D880,Place Operations,Supplies and Services,848.00,Aug-22
Slough Borough Council,805178,AFM Transport Limited,D880,Place Operations,Supplies and Services,"11,995.62",Aug-22
Slough Borough Council,805178,AFM Transport Limited,D880,Place Operations,Supplies and Services,"10,912.98",Aug-22
Slough Borough Council,805178,AFM Transport Limited,D880,Place Operations,Supplies and Services,555.00,Aug-22
Slough Borough Council,805178,AFM Transport Limited,D880,Place Operations,Supplies and Services,640.00,Aug-22
Slough Borough Council,805178,AFM Transport Limited,D880,Place Operations,Supplies and Services,"11,271.12",Aug-22
Slough Borough Council,805178,AFM Transport Limited,D880,Place Operations,Supplies and Services,"4,664.00",Aug-22
Slough Borough Council,805178,AFM Transport Limited,D880,Place Operations,Supplies and Services,"9,602.16",Aug-22
Slough Borough Council,805178,AFM Transport Limited,D880,Place Operations,Supplies and Services,"4,684.00",Aug-22
Slough Borough Council,2486,Agriculture And Estate Services Limited,P220,Capital,Capital Charges,"5,280.00",Aug-22
Slough Borough Council,2486,Agriculture And Estate Services Limited,P235,Capital,Capital Charges,"2,650.00",Aug-22
Slough Borough Council,808467,AIMediaData Limited t/a Vuelio,B252,Business Services,Supplies and Services,"6,666.67",Aug-22
Slough Borough Council,2197,Altwood Housing Ltd,H205,Housing (People) Services,Supplies and Services,"1,705.00",Aug-22
Slough Borough Council,2197,Altwood Housing Ltd,H205,Housing (People) Services,Supplies and Services,"1,485.00",Aug-22
Slough Borough Council,2197,Altwood Housing Ltd,H205,Housing (People) Services,Supplies and Services,930.00,Aug-22
Slough Borough Council,2197,Altwood Housing Ltd,H205,Housing (People) Services,Supplies and Services,"1,240.00",Aug-22
Slough Borough Council,2197,Altwood Housing Ltd,H205,Housing (People) Services,Supplies and Services,"1,705.00",Aug-22
Slough Borough Council,2197,Altwood Housing Ltd,H205,Housing (People) Services,Supplies and Services,744.00,Aug-22
Slough Borough Council,2197,Altwood Housing Ltd,H205,Housing (People) Services,Supplies and Services,"1,705.00",Aug-22
Slough Borough Council,2197,Altwood Housing Ltd,H205,Housing (People) Services,Supplies and Services,930.00,Aug-22
Slough Borough Council,2197,Altwood Housing Ltd,H205,Housing (People) Services,Supplies and Services,"1,240.00",Aug-22
Slough Borough Council,2197,Altwood Housing Ltd,H205,Housing (People) Services,Supplies and Services,"2,325.00",Aug-22
Slough Borough Council,2197,Altwood Housing Ltd,H205,Housing (People) Services,Supplies and Services,930.00,Aug-22
Slough Borough Council,2197,Altwood Housing Ltd,H205,Housing (People) Services,Supplies and Services,930.00,Aug-22
Slough Borough Council,2197,Altwood Housing Ltd,H205,Housing (People) Services,Supplies and Services,744.00,Aug-22
Slough Borough Council,2197,Altwood Housing Ltd,H205,Housing (People) Services,Supplies and Services,930.00,Aug-22
Slough Borough Council,2197,Altwood Housing Ltd,H205,Housing (People) Services,Supplies and Services,930.00,Aug-22
Slough Borough Council,2197,Altwood Housing Ltd,H205,Housing (People) Services,Supplies and Services,930.00,Aug-22
Slough Borough Council,2197,Altwood Housing Ltd,H205,Housing (People) Services,Supplies and Services,930.00,Aug-22
Slough Borough Council,86,Altwood Properties Ltd,H205,Housing (People) Services,Premises,"55,169.41",Aug-22
Slough Borough Council,807515,Always Growing Together Community Interest Company Limited,F909,Children & Families,Supplies and Services,"9,888.06",Aug-22
Slough Borough Council,808191,Ambrose Adrian Healthcare Ltd,B298,Finance & Commercial,Supplies and Services,867.50,Aug-22
Slough Borough Council,805264,Ameresco Limited,P239,Capital,Supplies and Services,"125,999.18",Aug-22
Slough Borough Council,805264,Ameresco Limited,P239,Capital,Supplies and Services,"13,558.13",Aug-22
Slough Borough Council,808368,Anthony Toby Homes Trust,M26E,Adult Social Care Operations,Supplies and Services,"5,413.80",Aug-22
Slough Borough Council,3137,Applegarth Care Home Ltd,M25C,Adult Social Care Operations,Supplies and Services,"3,200.00",Aug-22
Slough Borough Council,3137,Applegarth Care Home Ltd,M25C,Adult Social Care Operations,Supplies and Services,"3,400.00",Aug-22
Slough Borough Council,3137,Applegarth Care Home Ltd,M27C,Adult Social Care Operations,Supplies and Services,"3,500.00",Aug-22
Slough Borough Council,170,Apse,B204,Finance & Commercial,Supplies and Services,"4,297.00",Aug-22
Slough Borough Council,808415,APTUS EA LTD,H205,Housing (People) Services,Supplies and Services,"63,057.00",Aug-22
Slough Borough Council,3350,Arbour Vale School,E610,Children & Families,Supplies and Services,"431,940.82",Aug-22
Slough Borough Council,2073,Arc Preschool,F909,Children & Families,Supplies and Services,"5,820.15",Aug-22
Slough Borough Council,831,Argos Business Solutions Ltd,H055,Finance & Commercial,Supplies and Services,"4,561.70",Aug-22
Slough Borough Council,831,Argos Business Solutions Ltd,H055,Finance & Commercial,Supplies and Services,"2,745.60",Aug-22
Slough Borough Council,831,Argos Business Solutions Ltd,H055,Finance & Commercial,Supplies and Services,"1,042.75",Aug-22
Slough Borough Council,831,Argos Business Solutions Ltd,H055,Finance & Commercial,Supplies and Services,"2,902.30",Aug-22
Slough Borough Council,831,Argos Business Solutions Ltd,H055,Finance & Commercial,Supplies and Services,"4,607.50",Aug-22
Slough Borough Council,831,Argos Business Solutions Ltd,H055,Finance & Commercial,Supplies and Services,"4,539.45",Aug-22
Slough Borough Council,831,Argos Business Solutions Ltd,H055,Finance & Commercial,Supplies and Services,"3,206.80",Aug-22
Slough Borough Council,831,Argos Business Solutions Ltd,H055,Finance & Commercial,Supplies and Services,"2,277.65",Aug-22
Slough Borough Council,420,Ashburn Estate Agents,H205,Housing (People) Services,Premises,"159,774.00",Aug-22
Slough Borough Council,804324,Astoria Healthcare,M27F,Adult Social Care Operations,Supplies and Services,"4,417.50",Aug-22
Slough Borough Council,570,Atkins Limited,P187,Capital,Capital Charges,"31,499.00",Aug-22
Slough Borough Council,1286,Barnardos,F462,Children & Families,Supplies and Services,"16,834.00",Aug-22
Slough Borough Council,1286,Barnardos,F462,Children & Families,Supplies and Services,"2,301.00",Aug-22
Slough Borough Council,1286,Barnardos,F462,Children & Families,Supplies and Services,"32,268.00",Aug-22
Slough Borough Council,1286,Barnardos,F462,Children & Families,Supplies and Services,"16,233.00",Aug-22
Slough Borough Council,3370,Baylis Court School,E610,Children & Families,Supplies and Services,"4,163.34",Aug-22
Slough Borough Council,805659,BBLUR LLP,P432,Capital,Capital Charges,"10,000.00",Aug-22
Slough Borough Council,805659,BBLUR LLP,P432,Capital,Capital Charges,"10,000.00",Aug-22
Slough Borough Council,1681,Bcq,B240,Business Services,Supplies and Services,"1,737.00",Aug-22
Slough Borough Council,1681,Bcq,B246,Governance,Supplies and Services,"4,949.00",Aug-22
Slough Borough Council,1681,Bcq,B246,Governance,Supplies and Services,"16,788.00",Aug-22
Slough Borough Council,3208,Be Happy Pre School,F909,Children & Families,Supplies and Services,"8,019.49",Aug-22
Slough Borough Council,3208,Be Happy Pre School,F909,Children & Families,Supplies and Services,"4,118.26",Aug-22
Slough Borough Council,805539,Beech Haven Ltd,M27C,Adult Social Care Operations,Supplies and Services,"3,277.14",Aug-22
Slough Borough Council,804471,Beech Lodge School Ltd,F462,Children & Families,Supplies and Services,"12,615.00",Aug-22
Slough Borough Council,804471,Beech Lodge School Ltd,F462,Children & Families,Supplies and Services,"15,747.00",Aug-22
Slough Borough Council,804471,Beech Lodge School Ltd,F462,Children & Families,Supplies and Services,"20,446.00",Aug-22
Slough Borough Council,609,Beechwood Secondary School,E610,Children & Families,Supplies and Services,"3,016.67",Aug-22
Slough Borough Council,612,Berkshire Healthcare Nhs Foundation Trust,A07M,Mental Health Services,Agency Staff,812.00,Aug-22
Slough Borough Council,612,Berkshire Healthcare Nhs Foundation Trust,A07R,Adult Social Care Operations,Supplies and Services,"32,910.00",Aug-22
Slough Borough Council,612,Berkshire Healthcare Nhs Foundation Trust,F417,Education & Inclusion,Supplies and Services,"8,533.34",Aug-22
Slough Borough Council,808116,BeSpoke Cycling Instruction Ltd,D508,Place Strategy & Infrastructure,Supplies and Services,"7,930.00",Aug-22
Slough Borough Council,2308,Bespoke Supportive Tenancies Ltd,A04L,Adult Social Care Operations,Supplies and Services,"1,595.88",Aug-22
Slough Borough Council,2308,Bespoke Supportive Tenancies Ltd,A04L,Adult Social Care Operations,Supplies and Services,"1,544.40",Aug-22
Slough Borough Council,2308,Bespoke Supportive Tenancies Ltd,A04L,Adult Social Care Operations,Supplies and Services,"1,595.88",Aug-22
Slough Borough Council,808148,BEST CHOICE CARE LTD,A07R,Adult Social Care Operations,Supplies and Services,612.64,Aug-22
Slough Borough Council,808148,BEST CHOICE CARE LTD,A07R,Adult Social Care Operations,Supplies and Services,"1,102.64",Aug-22
Slough Borough Council,808148,BEST CHOICE CARE LTD,M44C,Adult Social Care Operations,Supplies and Services,"1,102.64",Aug-22
Slough Borough Council,808148,BEST CHOICE CARE LTD,M44C,Adult Social Care Operations,Supplies and Services,612.64,Aug-22
Slough Borough Council,808148,BEST CHOICE CARE LTD,M44C,Adult Social Care Operations,Supplies and Services,735.00,Aug-22
Slough Borough Council,808148,BEST CHOICE CARE LTD,M44C,Adult Social Care Operations,Supplies and Services,"1,382.64",Aug-22
Slough Borough Council,808148,BEST CHOICE CARE LTD,M44C,Adult Social Care Operations,Supplies and Services,"1,120.00",Aug-22
Slough Borough Council,808148,BEST CHOICE CARE LTD,M44C,Adult Social Care Operations,Supplies and Services,564.46,Aug-22
Slough Borough Council,808148,BEST CHOICE CARE LTD,M44C,Adult Social Care Operations,Supplies and Services,516.37,Aug-22
Slough Borough Council,808148,BEST CHOICE CARE LTD,M44D,Adult Social Care Operations,Supplies and Services,"2,467.50",Aug-22
Slough Borough Council,808148,BEST CHOICE CARE LTD,M44D,Adult Social Care Operations,Supplies and Services,"2,205.28",Aug-22
Slough Borough Council,808148,BEST CHOICE CARE LTD,M45C,Adult Social Care Operations,Supplies and Services,735.00,Aug-22
Slough Borough Council,1736,Bevan Brittan Llp,B086,Place Strategy & Infrastructure,Capital Charges,"2,152.50",Aug-22
Slough Borough Council,803828,Blue Willow Day Nursery Ltd,F549,Children & Families,Supplies and Services,"4,620.00",Aug-22
Slough Borough Council,803828,Blue Willow Day Nursery Ltd,F550,Children & Families,Supplies and Services,"4,620.00",Aug-22
Slough Borough Council,803828,Blue Willow Day Nursery Ltd,F909,Children & Families,Supplies and Services,"21,852.39",Aug-22
Slough Borough Council,806917,Boulters Lock,M27F,Adult Social Care Operations,Supplies and Services,"4,714.29",Aug-22
Slough Borough Council,805160,Bouygues E&S FM UK Limited,K521,Building Management,Premises,"33,727.72",Aug-22
Slough Borough Council,805160,Bouygues E&S FM UK Limited,K521,Building Management,Premises,"29,055.72",Aug-22
Slough Borough Council,805160,Bouygues E&S FM UK Limited,K521,Building Management,Premises,"17,868.09",Aug-22
Slough Borough Council,805160,Bouygues E&S FM UK Limited,K522,Building Management,Premises,"47,083.44",Aug-22
Slough Borough Council,805160,Bouygues E&S FM UK Limited,K522,Building Management,Premises,"47,036.96",Aug-22
Slough Borough Council,805160,Bouygues E&S FM UK Limited,K522,Building Management,Premises,"46,990.03",Aug-22
Slough Borough Council,805160,Bouygues E&S FM UK Limited,K522,Building Management,Premises,"47,051.27",Aug-22
Slough Borough Council,805160,Bouygues E&S FM UK Limited,K521,Building Management,Premises,"16,314.81",Aug-22
Slough Borough Council,805160,Bouygues E&S FM UK Limited,K523,Building Management,Premises,"47,041.09",Aug-22
Slough Borough Council,805160,Bouygues E&S FM UK Limited,K523,Building Management,Premises,"47,041.09",Aug-22
Slough Borough Council,805160,Bouygues E&S FM UK Limited,K523,Building Management,Premises,"47,041.09",Aug-22
Slough Borough Council,805160,Bouygues E&S FM UK Limited,K523,Building Management,Premises,"47,041.09",Aug-22
Slough Borough Council,805160,Bouygues E&S FM UK Limited,K525,Building Management,Premises,"3,149.03",Aug-22
Slough Borough Council,805160,Bouygues E&S FM UK Limited,K525,Building Management,Premises,"3,149.03",Aug-22
Slough Borough Council,805160,Bouygues E&S FM UK Limited,K525,Building Management,Premises,"3,149.03",Aug-22
Slough Borough Council,805160,Bouygues E&S FM UK Limited,K525,Building Management,Premises,"3,149.03",Aug-22
Slough Borough Council,805160,Bouygues E&S FM UK Limited,K522,Building Management,Supplies and Services,"6,822.13",Aug-22
Slough Borough Council,805160,Bouygues E&S FM UK Limited,K522,Building Management,Supplies and Services,"6,822.13",Aug-22
Slough Borough Council,805160,Bouygues E&S FM UK Limited,K522,Building Management,Supplies and Services,"-6,102.88",Aug-22
Slough Borough Council,805160,Bouygues E&S FM UK Limited,K522,Building Management,Supplies and Services,"6,822.13",Aug-22
Slough Borough Council,805160,Bouygues E&S FM UK Limited,K522,Building Management,Supplies and Services,"6,822.13",Aug-22
Slough Borough Council,805160,Bouygues E&S FM UK Limited,B060,Business Services,Transport,"5,631.02",Aug-22
Slough Borough Council,805160,Bouygues E&S FM UK Limited,B060,Business Services,Transport,"5,631.02",Aug-22
Slough Borough Council,805160,Bouygues E&S FM UK Limited,B060,Business Services,Transport,"5,631.02",Aug-22
Slough Borough Council,805160,Bouygues E&S FM UK Limited,B060,Business Services,Transport,"5,631.02",Aug-22
Slough Borough Council,2856,Brain Injury Rehabilitation Trust,M27C,Adult Social Care Operations,Supplies and Services,"7,481.67",Aug-22
Slough Borough Council,805179,Braywood Tree Surgery Ltd,P220,Capital,Capital Charges,"10,067.20",Aug-22
Slough Borough Council,805817,Bright World Nurseries,F909,Children & Families,Supplies and Services,"10,380.54",Aug-22
Slough Borough Council,949,British Parking Association,D123,Place Strategy & Infrastructure,Supplies and Services,"1,822.00",Aug-22
Slough Borough Council,617,British Telecommunications,J015,Place Management,Supplies and Services,"1,981.09",Aug-22
Slough Borough Council,617,British Telecommunications,J015,Place Management,Supplies and Services,"2,138.84",Aug-22
Slough Borough Council,504,Britwell Baptist Pre School,F909,Children & Families,Supplies and Services,"6,127.32",Aug-22
Slough Borough Council,803873,Buckinghamshire County Council,F552,Children & Families,Supplies and Services,"1,942.04",Aug-22
Slough Borough Council,806892,Bucks & Berks SLT Consultancy,F417,Education & Inclusion,Supplies and Services,"1,137.60",Aug-22
Slough Borough Council,805404,Building Futures Together,F210,Community,TP-Other Bodies,"3,600.00",Aug-22
Slough Borough Council,803553,BUPA CARE HOME (CFH CARE),M25D,Adult Social Care Operations,Supplies and Services,"3,172.00",Aug-22
Slough Borough Council,804492,Burnham Grammar School,F551,Children & Families,Supplies and Services,"5,000.00",Aug-22
Slough Borough Council,807597,Bytesize Training ltd,B282,Digital and Strategic IT,Supplies and Services,"1,400.00",Aug-22
Slough Borough Council,629,C.H.O.I.C.E Limited,M26E,Adult Social Care Operations,Supplies and Services,"11,213.97",Aug-22
Slough Borough Council,629,C.H.O.I.C.E Limited,M26E,Adult Social Care Operations,Supplies and Services,"6,358.27",Aug-22
Slough Borough Council,629,C.H.O.I.C.E Limited,M26E,Adult Social Care Operations,Supplies and Services,"10,756.82",Aug-22
Slough Borough Council,629,C.H.O.I.C.E Limited,M26E,Adult Social Care Operations,Supplies and Services,"10,393.99",Aug-22
Slough Borough Council,629,C.H.O.I.C.E Limited,M26E,Adult Social Care Operations,Supplies and Services,"10,733.13",Aug-22
Slough Borough Council,629,C.H.O.I.C.E Limited,M26E,Adult Social Care Operations,Supplies and Services,"10,964.39",Aug-22
Slough Borough Council,629,C.H.O.I.C.E Limited,M26E,Adult Social Care Operations,Supplies and Services,"9,228.34",Aug-22
Slough Borough Council,629,C.H.O.I.C.E Limited,M26E,Adult Social Care Operations,Supplies and Services,"8,738.50",Aug-22
Slough Borough Council,629,C.H.O.I.C.E Limited,M42E,Adult Social Care Operations,Supplies and Services,"6,235.03",Aug-22
Slough Borough Council,629,C.H.O.I.C.E Limited,M42E,Adult Social Care Operations,Supplies and Services,"5,677.03",Aug-22
Slough Borough Council,629,C.H.O.I.C.E Limited,M42E,Adult Social Care Operations,Supplies and Services,"6,145.35",Aug-22
Slough Borough Council,629,C.H.O.I.C.E Limited,M42E,Adult Social Care Operations,Supplies and Services,"6,108.82",Aug-22
Slough Borough Council,629,C.H.O.I.C.E Limited,M44D,Adult Social Care Operations,Supplies and Services,"4,431.49",Aug-22
Slough Borough Council,629,C.H.O.I.C.E Limited,M44F,Adult Social Care Operations,Supplies and Services,"2,608.07",Aug-22
Slough Borough Council,629,C.H.O.I.C.E Limited,M44F,Adult Social Care Operations,Supplies and Services,"2,581.90",Aug-22
Slough Borough Council,629,C.H.O.I.C.E Limited,M26E,Adult Social Care Operations,External Receipts,-534.53,Aug-22
Slough Borough Council,629,C.H.O.I.C.E Limited,M26E,Adult Social Care Operations,External Receipts,-515.75,Aug-22
Slough Borough Council,629,C.H.O.I.C.E Limited,M26E,Adult Social Care Operations,External Receipts,-515.75,Aug-22
Slough Borough Council,2881,Calcot Services For Children Limited,F462,Children & Families,Supplies and Services,"17,650.00",Aug-22
Slough Borough Council,807129,Calcot Services for Children Ltd (Eton Dorney Therapeutic School),F462,Children & Families,Supplies and Services,"17,650.00",Aug-22
Slough Borough Council,807129,Calcot Services for Children Ltd (Eton Dorney Therapeutic School),F462,Children & Families,Supplies and Services,"20,466.66",Aug-22
Slough Borough Council,808007,Cameron & Cooper Limited (The Beech House School),F462,Children & Families,Supplies and Services,"1,157.86",Aug-22
Slough Borough Council,737,Capita Business Services Ltd,B282,Digital and Strategic IT,Supplies and Services,"21,495.00",Aug-22
Slough Borough Council,804861,Care Management Group Ltd,M42F,Adult Social Care Operations,Supplies and Services,"1,926.74",Aug-22
Slough Borough Council,805621,Care Staff Services,A07R,Adult Social Care Operations,Supplies and Services,"1,102.50",Aug-22
Slough Borough Council,805621,Care Staff Services,A07R,Adult Social Care Operations,Supplies and Services,"1,102.50",Aug-22
Slough Borough Council,805621,Care Staff Services,M41D,Adult Social Care Operations,Supplies and Services,"1,102.50",Aug-22
Slough Borough Council,805621,Care Staff Services,M44C,Adult Social Care Operations,Supplies and Services,"1,813.00",Aug-22
Slough Borough Council,805621,Care Staff Services,M44C,Adult Social Care Operations,Supplies and Services,612.50,Aug-22
Slough Borough Council,805621,Care Staff Services,M44C,Adult Social Care Operations,Supplies and Services,"1,102.50",Aug-22
Slough Borough Council,805621,Care Staff Services,M44C,Adult Social Care Operations,Supplies and Services,"2,146.00",Aug-22
Slough Borough Council,805621,Care Staff Services,M44C,Adult Social Care Operations,Supplies and Services,"1,406.00",Aug-22
Slough Borough Council,805621,Care Staff Services,M44C,Adult Social Care Operations,Supplies and Services,"1,554.00",Aug-22
Slough Borough Council,805621,Care Staff Services,M44C,Adult Social Care Operations,Supplies and Services,717.50,Aug-22
Slough Borough Council,805621,Care Staff Services,M44C,Adult Social Care Operations,Supplies and Services,"2,205.00",Aug-22
Slough Borough Council,805621,Care Staff Services,M44C,Adult Social Care Operations,Supplies and Services,857.50,Aug-22
Slough Borough Council,805621,Care Staff Services,M44C,Adult Social Care Operations,Supplies and Services,752.50,Aug-22
Slough Borough Council,805621,Care Staff Services,M44C,Adult Social Care Operations,Supplies and Services,906.50,Aug-22
Slough Borough Council,805621,Care Staff Services,M44C,Adult Social Care Operations,Supplies and Services,906.50,Aug-22
Slough Borough Council,805621,Care Staff Services,M44C,Adult Social Care Operations,Supplies and Services,518.00,Aug-22
Slough Borough Council,805621,Care Staff Services,M44C,Adult Social Care Operations,Supplies and Services,"1,202.50",Aug-22
Slough Borough Council,805621,Care Staff Services,M44C,Adult Social Care Operations,Supplies and Services,"1,470.00",Aug-22
Slough Borough Council,805621,Care Staff Services,M44C,Adult Social Care Operations,Supplies and Services,906.50,Aug-22
Slough Borough Council,805621,Care Staff Services,M44C,Adult Social Care Operations,Supplies and Services,777.00,Aug-22
Slough Borough Council,805621,Care Staff Services,M44C,Adult Social Care Operations,Supplies and Services,"1,036.00",Aug-22
Slough Borough Council,805621,Care Staff Services,M44C,Adult Social Care Operations,Supplies and Services,666.00,Aug-22
Slough Borough Council,805621,Care Staff Services,M44C,Adult Social Care Operations,Supplies and Services,"2,331.00",Aug-22
Slough Borough Council,805621,Care Staff Services,M44C,Adult Social Care Operations,Supplies and Services,647.50,Aug-22
Slough Borough Council,805621,Care Staff Services,M44C,Adult Social Care Operations,Supplies and Services,857.50,Aug-22
Slough Borough Council,805621,Care Staff Services,M44C,Adult Social Care Operations,Supplies and Services,"1,813.00",Aug-22
Slough Borough Council,805621,Care Staff Services,M44C,Adult Social Care Operations,Supplies and Services,518.00,Aug-22
Slough Borough Council,805621,Care Staff Services,M44C,Adult Social Care Operations,Supplies and Services,906.50,Aug-22
Slough Borough Council,805621,Care Staff Services,M44C,Adult Social Care Operations,Supplies and Services,721.50,Aug-22
Slough Borough Council,805621,Care Staff Services,M44C,Adult Social Care Operations,Supplies and Services,"1,225.00",Aug-22
Slough Borough Council,805621,Care Staff Services,M44C,Adult Social Care Operations,Supplies and Services,"1,724.37",Aug-22
Slough Borough Council,805621,Care Staff Services,M44C,Adult Social Care Operations,Supplies and Services,"2,072.00",Aug-22
Slough Borough Council,805621,Care Staff Services,M44C,Adult Social Care Operations,Supplies and Services,"2,275.00",Aug-22
Slough Borough Council,805621,Care Staff Services,M44C,Adult Social Care Operations,Supplies and Services,"1,102.50",Aug-22
Slough Borough Council,805621,Care Staff Services,M44C,Adult Social Care Operations,Supplies and Services,"1,715.00",Aug-22
Slough Borough Council,805621,Care Staff Services,M44C,Adult Social Care Operations,Supplies and Services,857.50,Aug-22
Slough Borough Council,805621,Care Staff Services,M44C,Adult Social Care Operations,Supplies and Services,"2,205.00",Aug-22
Slough Borough Council,805621,Care Staff Services,M44C,Adult Social Care Operations,Supplies and Services,906.50,Aug-22
Slough Borough Council,805621,Care Staff Services,M44C,Adult Social Care Operations,Supplies and Services,577.50,Aug-22
Slough Borough Council,805621,Care Staff Services,M44C,Adult Social Care Operations,Supplies and Services,925.00,Aug-22
Slough Borough Council,805621,Care Staff Services,M44C,Adult Social Care Operations,Supplies and Services,612.50,Aug-22
Slough Borough Council,805621,Care Staff Services,M44C,Adult Social Care Operations,Supplies and Services,"1,239.50",Aug-22
Slough Borough Council,805621,Care Staff Services,M44C,Adult Social Care Operations,Supplies and Services,858.13,Aug-22
Slough Borough Council,805621,Care Staff Services,M44C,Adult Social Care Operations,Supplies and Services,906.50,Aug-22
Slough Borough Council,805621,Care Staff Services,M44C,Adult Social Care Operations,Supplies and Services,"2,205.00",Aug-22
Slough Borough Council,805621,Care Staff Services,M44C,Adult Social Care Operations,Supplies and Services,647.50,Aug-22
Slough Borough Council,805621,Care Staff Services,M44C,Adult Social Care Operations,Supplies and Services,"1,715.00",Aug-22
Slough Borough Council,805621,Care Staff Services,M44C,Adult Social Care Operations,Supplies and Services,805.00,Aug-22
Slough Borough Council,805621,Care Staff Services,M44C,Adult Social Care Operations,Supplies and Services,581.88,Aug-22
Slough Borough Council,805621,Care Staff Services,M44C,Adult Social Care Operations,Supplies and Services,752.50,Aug-22
Slough Borough Council,805621,Care Staff Services,M44C,Adult Social Care Operations,Supplies and Services,906.50,Aug-22
Slough Borough Council,805621,Care Staff Services,M44C,Adult Social Care Operations,Supplies and Services,853.13,Aug-22
Slough Borough Council,805621,Care Staff Services,M44D,Adult Social Care Operations,Supplies and Services,"1,785.00",Aug-22
Slough Borough Council,805621,Care Staff Services,M44D,Adult Social Care Operations,Supplies and Services,832.50,Aug-22
Slough Borough Council,805621,Care Staff Services,M44D,Adult Social Care Operations,Supplies and Services,518.00,Aug-22
Slough Borough Council,805621,Care Staff Services,M44D,Adult Social Care Operations,Supplies and Services,"1,295.00",Aug-22
Slough Borough Council,805621,Care Staff Services,M44D,Adult Social Care Operations,Supplies and Services,612.50,Aug-22
Slough Borough Council,805621,Care Staff Services,M44D,Adult Social Care Operations,Supplies and Services,"1,295.00",Aug-22
Slough Borough Council,805621,Care Staff Services,M44D,Adult Social Care Operations,Supplies and Services,"1,592.50",Aug-22
Slough Borough Council,805621,Care Staff Services,M44D,Adult Social Care Operations,Supplies and Services,"1,165.50",Aug-22
Slough Borough Council,805621,Care Staff Services,M44D,Adult Social Care Operations,Supplies and Services,"2,331.00",Aug-22
Slough Borough Council,805621,Care Staff Services,M44D,Adult Social Care Operations,Supplies and Services,857.50,Aug-22
Slough Borough Council,805621,Care Staff Services,M44D,Adult Social Care Operations,Supplies and Services,629.00,Aug-22
Slough Borough Council,805621,Care Staff Services,M44E,Adult Social Care Operations,Supplies and Services,518.00,Aug-22
Slough Borough Council,805621,Care Staff Services,M44F,Adult Social Care Operations,Supplies and Services,"2,590.00",Aug-22
Slough Borough Council,805621,Care Staff Services,M44F,Adult Social Care Operations,Supplies and Services,666.00,Aug-22
Slough Borough Council,805621,Care Staff Services,M44F,Adult Social Care Operations,Supplies and Services,"1,242.50",Aug-22
Slough Borough Council,805621,Care Staff Services,M44F,Adult Social Care Operations,Supplies and Services,999.00,Aug-22
Slough Borough Council,805621,Care Staff Services,M44F,Adult Social Care Operations,Supplies and Services,518.00,Aug-22
Slough Borough Council,805621,Care Staff Services,M44F,Adult Social Care Operations,Supplies and Services,"1,036.00",Aug-22
Slough Borough Council,805621,Care Staff Services,M44F,Adult Social Care Operations,Supplies and Services,740.00,Aug-22
Slough Borough Council,805621,Care Staff Services,M48C,Adult Social Care Operations,Supplies and Services,560.00,Aug-22
Slough Borough Council,805621,Care Staff Services,M48C,Adult Social Care Operations,Supplies and Services,"2,331.00",Aug-22
Slough Borough Council,1162,Care Uk Community Partnership Ltd,A03E,Adult Social Care Operations,Supplies and Services,"3,842.56",Aug-22
Slough Borough Council,1162,Care Uk Community Partnership Ltd,M15D,Adult Social Care Operations,Supplies and Services,"2,827.20",Aug-22
Slough Borough Council,1162,Care Uk Community Partnership Ltd,M15D,Adult Social Care Operations,Supplies and Services,"3,803.00",Aug-22
Slough Borough Council,1162,Care Uk Community Partnership Ltd,M15D,Adult Social Care Operations,Supplies and Services,"3,803.00",Aug-22
Slough Borough Council,1162,Care Uk Community Partnership Ltd,M15D,Adult Social Care Operations,Supplies and Services,"3,803.00",Aug-22
Slough Borough Council,1162,Care Uk Community Partnership Ltd,M15D,Adult Social Care Operations,Supplies and Services,"3,803.00",Aug-22
Slough Borough Council,1162,Care Uk Community Partnership Ltd,M15D,Adult Social Care Operations,Supplies and Services,"3,969.72",Aug-22
Slough Borough Council,1162,Care Uk Community Partnership Ltd,M15F,Adult Social Care Operations,Supplies and Services,"3,803.00",Aug-22
Slough Borough Council,1162,Care Uk Community Partnership Ltd,M17C,Adult Social Care Operations,Supplies and Services,"3,969.72",Aug-22
Slough Borough Council,1162,Care Uk Community Partnership Ltd,M17C,Adult Social Care Operations,Supplies and Services,"3,969.72",Aug-22
Slough Borough Council,1162,Care Uk Community Partnership Ltd,M17C,Adult Social Care Operations,Supplies and Services,"3,969.72",Aug-22
Slough Borough Council,1162,Care Uk Community Partnership Ltd,M17C,Adult Social Care Operations,Supplies and Services,"3,969.72",Aug-22
Slough Borough Council,1162,Care Uk Community Partnership Ltd,M17C,Adult Social Care Operations,Supplies and Services,"3,969.72",Aug-22
Slough Borough Council,1162,Care Uk Community Partnership Ltd,M17C,Adult Social Care Operations,Supplies and Services,"5,778.36",Aug-22
Slough Borough Council,1162,Care Uk Community Partnership Ltd,M18C,Adult Social Care Operations,Supplies and Services,"3,803.00",Aug-22
Slough Borough Council,1162,Care Uk Community Partnership Ltd,M18C,Adult Social Care Operations,Supplies and Services,"3,803.00",Aug-22
Slough Borough Council,1162,Care Uk Community Partnership Ltd,M18C,Adult Social Care Operations,Supplies and Services,"3,803.00",Aug-22
Slough Borough Council,1162,Care Uk Community Partnership Ltd,M18C,Adult Social Care Operations,Supplies and Services,"3,803.00",Aug-22
Slough Borough Council,1162,Care Uk Community Partnership Ltd,M18C,Adult Social Care Operations,Supplies and Services,"3,803.00",Aug-22
Slough Borough Council,1162,Care Uk Community Partnership Ltd,M18C,Adult Social Care Operations,Supplies and Services,"3,969.72",Aug-22
Slough Borough Council,1162,Care Uk Community Partnership Ltd,M18C,Adult Social Care Operations,Supplies and Services,"3,803.00",Aug-22
Slough Borough Council,1162,Care Uk Community Partnership Ltd,M18C,Adult Social Care Operations,Supplies and Services,"3,969.72",Aug-22
Slough Borough Council,1162,Care Uk Community Partnership Ltd,M18C,Adult Social Care Operations,Supplies and Services,"3,969.72",Aug-22
Slough Borough Council,1162,Care Uk Community Partnership Ltd,M18C,Adult Social Care Operations,Supplies and Services,"3,969.72",Aug-22
Slough Borough Council,1162,Care Uk Community Partnership Ltd,M18C,Adult Social Care Operations,Supplies and Services,"3,803.00",Aug-22
Slough Borough Council,1162,Care Uk Community Partnership Ltd,M18C,Adult Social Care Operations,Supplies and Services,"64,651.00",Aug-22
Slough Borough Council,1162,Care Uk Community Partnership Ltd,M18C,Adult Social Care Operations,Supplies and Services,"-13,594.60",Aug-22
Slough Borough Council,1162,Care Uk Community Partnership Ltd,M18C,Adult Social Care Operations,Supplies and Services,"3,803.00",Aug-22
Slough Borough Council,1162,Care Uk Community Partnership Ltd,M18C,Adult Social Care Operations,Supplies and Services,"3,803.00",Aug-22
Slough Borough Council,1162,Care Uk Community Partnership Ltd,M18C,Adult Social Care Operations,Supplies and Services,"3,969.72",Aug-22
Slough Borough Council,1162,Care Uk Community Partnership Ltd,M18C,Adult Social Care Operations,Supplies and Services,"3,969.72",Aug-22
Slough Borough Council,1162,Care Uk Community Partnership Ltd,M18C,Adult Social Care Operations,Supplies and Services,"3,969.72",Aug-22
Slough Borough Council,1162,Care Uk Community Partnership Ltd,M18C,Adult Social Care Operations,Supplies and Services,"3,969.72",Aug-22
Slough Borough Council,1162,Care Uk Community Partnership Ltd,M18C,Adult Social Care Operations,Supplies and Services,"3,803.00",Aug-22
Slough Borough Council,1162,Care Uk Community Partnership Ltd,M18C,Adult Social Care Operations,Supplies and Services,"3,969.72",Aug-22
Slough Borough Council,1162,Care Uk Community Partnership Ltd,M18C,Adult Social Care Operations,Supplies and Services,"3,969.72",Aug-22
Slough Borough Council,1162,Care Uk Community Partnership Ltd,M18C,Adult Social Care Operations,Supplies and Services,"3,803.00",Aug-22
Slough Borough Council,1162,Care Uk Community Partnership Ltd,M18C,Adult Social Care Operations,Supplies and Services,"-26,620.68",Aug-22
Slough Borough Council,1162,Care Uk Community Partnership Ltd,M18C,Adult Social Care Operations,Supplies and Services,"3,803.00",Aug-22
Slough Borough Council,1162,Care Uk Community Partnership Ltd,M18C,Adult Social Care Operations,Supplies and Services,"3,803.00",Aug-22
Slough Borough Council,1162,Care Uk Community Partnership Ltd,M25C,Adult Social Care Operations,Supplies and Services,"-27,875.60",Aug-22
Slough Borough Council,1162,Care Uk Community Partnership Ltd,M25C,Adult Social Care Operations,Supplies and Services,"3,484.52",Aug-22
Slough Borough Council,1162,Care Uk Community Partnership Ltd,M25C,Adult Social Care Operations,Supplies and Services,"3,484.52",Aug-22
Slough Borough Council,1162,Care Uk Community Partnership Ltd,M25C,Adult Social Care Operations,Supplies and Services,"3,484.52",Aug-22
Slough Borough Council,1162,Care Uk Community Partnership Ltd,M25C,Adult Social Care Operations,Supplies and Services,"73,174.92",Aug-22
Slough Borough Council,1162,Care Uk Community Partnership Ltd,M25C,Adult Social Care Operations,Supplies and Services,"3,484.52",Aug-22
Slough Borough Council,1162,Care Uk Community Partnership Ltd,M26E,Adult Social Care Operations,Supplies and Services,"3,803.00",Aug-22
Slough Borough Council,1162,Care Uk Community Partnership Ltd,M26E,Adult Social Care Operations,Supplies and Services,"3,803.00",Aug-22
Slough Borough Council,1162,Care Uk Community Partnership Ltd,M27C,Adult Social Care Operations,Supplies and Services,"-5,314.29",Aug-22
Slough Borough Council,1162,Care Uk Community Partnership Ltd,M27C,Adult Social Care Operations,Supplies and Services,514.29,Aug-22
Slough Borough Council,1162,Care Uk Community Partnership Ltd,M27C,Adult Social Care Operations,Supplies and Services,"3,484.52",Aug-22
Slough Borough Council,1162,Care Uk Community Partnership Ltd,M27C,Adult Social Care Operations,Supplies and Services,"3,181.40",Aug-22
Slough Borough Council,1162,Care Uk Community Partnership Ltd,M27C,Adult Social Care Operations,Supplies and Services,"3,484.52",Aug-22
Slough Borough Council,1162,Care Uk Community Partnership Ltd,M27C,Adult Social Care Operations,Supplies and Services,"3,484.52",Aug-22
Slough Borough Council,1162,Care Uk Community Partnership Ltd,M27C,Adult Social Care Operations,Supplies and Services,"3,181.40",Aug-22
Slough Borough Council,1162,Care Uk Community Partnership Ltd,M27C,Adult Social Care Operations,Supplies and Services,"3,484.52",Aug-22
Slough Borough Council,1162,Care Uk Community Partnership Ltd,M27C,Adult Social Care Operations,Supplies and Services,"3,484.52",Aug-22
Slough Borough Council,1162,Care Uk Community Partnership Ltd,M27C,Adult Social Care Operations,Supplies and Services,"3,484.52",Aug-22
Slough Borough Council,1162,Care Uk Community Partnership Ltd,M27C,Adult Social Care Operations,Supplies and Services,"3,181.40",Aug-22
Slough Borough Council,1162,Care Uk Community Partnership Ltd,M27C,Adult Social Care Operations,Supplies and Services,"3,484.52",Aug-22
Slough Borough Council,1162,Care Uk Community Partnership Ltd,M27C,Adult Social Care Operations,Supplies and Services,"3,484.52",Aug-22
Slough Borough Council,1162,Care Uk Community Partnership Ltd,M27C,Adult Social Care Operations,Supplies and Services,"3,484.52",Aug-22
Slough Borough Council,1162,Care Uk Community Partnership Ltd,M27C,Adult Social Care Operations,Supplies and Services,"3,484.52",Aug-22
Slough Borough Council,1162,Care Uk Community Partnership Ltd,M27C,Adult Social Care Operations,Supplies and Services,"3,484.52",Aug-22
Slough Borough Council,1162,Care Uk Community Partnership Ltd,M27C,Adult Social Care Operations,Supplies and Services,"31,814.00",Aug-22
Slough Borough Council,1162,Care Uk Community Partnership Ltd,M27C,Adult Social Care Operations,Supplies and Services,"3,181.40",Aug-22
Slough Borough Council,1162,Care Uk Community Partnership Ltd,M27C,Adult Social Care Operations,Supplies and Services,"3,484.52",Aug-22
Slough Borough Council,1162,Care Uk Community Partnership Ltd,M27C,Adult Social Care Operations,Supplies and Services,"3,181.40",Aug-22
Slough Borough Council,1162,Care Uk Community Partnership Ltd,M27C,Adult Social Care Operations,Supplies and Services,"3,484.52",Aug-22
Slough Borough Council,1162,Care Uk Community Partnership Ltd,M27F,Adult Social Care Operations,Supplies and Services,"-3,181.40",Aug-22
Slough Borough Council,1162,Care Uk Community Partnership Ltd,M28C,Adult Social Care Operations,Supplies and Services,"3,181.40",Aug-22
Slough Borough Council,804413,Castle Water,B064,Business Services,Premises,"1,531.08",Aug-22
Slough Borough Council,804413,Castle Water,D900,Place Operations,Premises,727.87,Aug-22
Slough Borough Council,418,Castleview School,E620,Children & Families,Supplies and Services,"27,736.27",Aug-22
Slough Borough Council,805619,Centennial Property Limited T/A The Housing Network,H205,Housing (People) Services,Premises,"33,955.00",Aug-22
Slough Borough Council,805174,Certas Energy,D900,Place Operations,Supplies and Services,"22,028.94",Aug-22
Slough Borough Council,2892,Chalfont Lodge,M15D,Adult Social Care Operations,Supplies and Services,"5,978.57",Aug-22
Slough Borough Council,2892,Chalfont Lodge,M15D,Adult Social Care Operations,Supplies and Services,"3,321.43",Aug-22
Slough Borough Council,2892,Chalfont Lodge,M15F,Adult Social Care Operations,Supplies and Services,"8,857.14",Aug-22
Slough Borough Council,2892,Chalfont Lodge,M26E,Adult Social Care Operations,Supplies and Services,"5,978.57",Aug-22
Slough Borough Council,808500,Chartwell Care Services,M26E,Adult Social Care Operations,Supplies and Services,"13,021.90",Aug-22
Slough Borough Council,3114,Cherry Trees Day Nursery,F909,Children & Families,Supplies and Services,"26,273.52",Aug-22
Slough Borough Council,807225,Chiltern Way Academy,F551,Children & Families,Supplies and Services,"1,995.42",Aug-22
Slough Borough Council,808527,Chiron Care (Uk) Limited,M44F,Adult Social Care Operations,Supplies and Services,"1,145.00",Aug-22
Slough Borough Council,808527,Chiron Care (Uk) Limited,M44F,Adult Social Care Operations,Supplies and Services,"1,868.68",Aug-22
Slough Borough Council,808527,Chiron Care (Uk) Limited,M44F,Adult Social Care Operations,Supplies and Services,"1,808.40",Aug-22
Slough Borough Council,808527,Chiron Care (Uk) Limited,M44F,Adult Social Care Operations,Supplies and Services,"1,868.68",Aug-22
Slough Borough Council,808527,Chiron Care (Uk) Limited,M44F,Adult Social Care Operations,Supplies and Services,"1,808.40",Aug-22
Slough Borough Council,808253,CIA Fire & Security Ltd,B148,Business Services,Premises,596.00,Aug-22
Slough Borough Council,807491,Cippenham School,E620,Children & Families,Supplies and Services,"25,529.68",Aug-22
Slough Borough Council,806550,City Homecare Ltd,A07R,Adult Social Care Operations,Supplies and Services,747.60,Aug-22
Slough Borough Council,806550,City Homecare Ltd,A07R,Adult Social Care Operations,Supplies and Services,831.60,Aug-22
Slough Borough Council,806550,City Homecare Ltd,M44C,Adult Social Care Operations,Supplies and Services,940.80,Aug-22
Slough Borough Council,806550,City Homecare Ltd,M44C,Adult Social Care Operations,Supplies and Services,"1,881.60",Aug-22
Slough Borough Council,806550,City Homecare Ltd,M44C,Adult Social Care Operations,Supplies and Services,823.20,Aug-22
Slough Borough Council,806550,City Homecare Ltd,M44C,Adult Social Care Operations,Supplies and Services,596.40,Aug-22
Slough Borough Council,806550,City Homecare Ltd,M44C,Adult Social Care Operations,Supplies and Services,"2,116.80",Aug-22
Slough Borough Council,806550,City Homecare Ltd,M44C,Adult Social Care Operations,Supplies and Services,823.20,Aug-22
Slough Borough Council,806550,City Homecare Ltd,M44C,Adult Social Care Operations,Supplies and Services,705.60,Aug-22
Slough Borough Council,806550,City Homecare Ltd,M44C,Adult Social Care Operations,Supplies and Services,"1,058.40",Aug-22
Slough Borough Council,806550,City Homecare Ltd,M44C,Adult Social Care Operations,Supplies and Services,940.80,Aug-22
Slough Borough Council,806550,City Homecare Ltd,M44C,Adult Social Care Operations,Supplies and Services,"2,251.20",Aug-22
Slough Borough Council,806550,City Homecare Ltd,M44C,Adult Social Care Operations,Supplies and Services,"1,881.60",Aug-22
Slough Borough Council,806550,City Homecare Ltd,M44C,Adult Social Care Operations,Supplies and Services,588.00,Aug-22
Slough Borough Council,806550,City Homecare Ltd,M44C,Adult Social Care Operations,Supplies and Services,"2,116.80",Aug-22
Slough Borough Council,806550,City Homecare Ltd,M44C,Adult Social Care Operations,Supplies and Services,"1,646.40",Aug-22
Slough Borough Council,806550,City Homecare Ltd,M44C,Adult Social Care Operations,Supplies and Services,"3,528.00",Aug-22
Slough Borough Council,806550,City Homecare Ltd,M44C,Adult Social Care Operations,Supplies and Services,856.80,Aug-22
Slough Borough Council,806550,City Homecare Ltd,M44C,Adult Social Care Operations,Supplies and Services,831.60,Aug-22
Slough Borough Council,806550,City Homecare Ltd,M44C,Adult Social Care Operations,Supplies and Services,"2,116.80",Aug-22
Slough Borough Council,806550,City Homecare Ltd,M44C,Adult Social Care Operations,Supplies and Services,"1,411.20",Aug-22
Slough Borough Council,806550,City Homecare Ltd,M44C,Adult Social Care Operations,Supplies and Services,"1,243.20",Aug-22
Slough Borough Council,806550,City Homecare Ltd,M44C,Adult Social Care Operations,Supplies and Services,"1,159.20",Aug-22
Slough Borough Council,806550,City Homecare Ltd,M44C,Adult Social Care Operations,Supplies and Services,"1,881.60",Aug-22
Slough Borough Council,806550,City Homecare Ltd,M44C,Adult Social Care Operations,Supplies and Services,"1,646.40",Aug-22
Slough Borough Council,806550,City Homecare Ltd,M44C,Adult Social Care Operations,Supplies and Services,"1,058.40",Aug-22
Slough Borough Council,806550,City Homecare Ltd,M44C,Adult Social Care Operations,Supplies and Services,"1,176.00",Aug-22
Slough Borough Council,806550,City Homecare Ltd,M44C,Adult Social Care Operations,Supplies and Services,"1,058.40",Aug-22
Slough Borough Council,806550,City Homecare Ltd,M44C,Adult Social Care Operations,Supplies and Services,688.80,Aug-22
Slough Borough Council,806550,City Homecare Ltd,M44D,Adult Social Care Operations,Supplies and Services,520.80,Aug-22
Slough Borough Council,806550,City Homecare Ltd,M44D,Adult Social Care Operations,Supplies and Services,705.60,Aug-22
Slough Borough Council,806550,City Homecare Ltd,M44D,Adult Social Care Operations,Supplies and Services,940.80,Aug-22
Slough Borough Council,806550,City Homecare Ltd,M44D,Adult Social Care Operations,Supplies and Services,"2,822.40",Aug-22
Slough Borough Council,806550,City Homecare Ltd,M44D,Adult Social Care Operations,Supplies and Services,940.80,Aug-22
Slough Borough Council,806550,City Homecare Ltd,M44D,Adult Social Care Operations,Supplies and Services,"1,898.40",Aug-22
Slough Borough Council,806550,City Homecare Ltd,M44D,Adult Social Care Operations,Supplies and Services,588.00,Aug-22
Slough Borough Council,806550,City Homecare Ltd,M44D,Adult Social Care Operations,Supplies and Services,588.00,Aug-22
Slough Borough Council,806550,City Homecare Ltd,M44E,Adult Social Care Operations,Supplies and Services,705.60,Aug-22
Slough Borough Council,806550,City Homecare Ltd,M44F,Adult Social Care Operations,Supplies and Services,806.40,Aug-22
Slough Borough Council,806550,City Homecare Ltd,M44F,Adult Social Care Operations,Supplies and Services,"1,478.40",Aug-22
Slough Borough Council,806550,City Homecare Ltd,M44F,Adult Social Care Operations,Supplies and Services,840.00,Aug-22
Slough Borough Council,806550,City Homecare Ltd,M45C,Adult Social Care Operations,Supplies and Services,823.20,Aug-22
Slough Borough Council,806550,City Homecare Ltd,M48C,Adult Social Care Operations,Supplies and Services,554.40,Aug-22
Slough Borough Council,803591,City of London Corporation,D224,Place Regulation,External Receipts,"10,791.31",Aug-22
Slough Borough Council,1083,Civica Uk Limited,B342,Digital and Strategic IT,Supplies and Services,"8,905.00",Aug-22
Slough Borough Council,1083,Civica Uk Limited,B342,Digital and Strategic IT,Supplies and Services,"3,000.00",Aug-22
Slough Borough Council,1083,Civica Uk Limited,C104,Community,Supplies and Services,"3,583.34",Aug-22
Slough Borough Council,1151,Claycots Primary School,K089,Place Regulation,Premises,"4,176.59",Aug-22
Slough Borough Council,1151,Claycots Primary School,F549,Children & Families,Supplies and Services,"4,620.00",Aug-22
Slough Borough Council,1151,Claycots Primary School,E200,Children & Families,Supplies and Services,"808,111.46",Aug-22
Slough Borough Council,408,Clear Channel Uk Ltd,B283,Finance & Commercial,Supplies and Services,"1,200.00",Aug-22
Slough Borough Council,408,Clear Channel Uk Ltd,B283,Finance & Commercial,Supplies and Services,850.00,Aug-22
Slough Borough Council,408,Clear Channel Uk Ltd,B283,Finance & Commercial,Supplies and Services,850.00,Aug-22
Slough Borough Council,3685,Coghlan Lodges Limited,M44D,Adult Social Care Operations,Supplies and Services,"2,116.04",Aug-22
Slough Borough Council,3685,Coghlan Lodges Limited,M44F,Adult Social Care Operations,Supplies and Services,"1,870.00",Aug-22
Slough Borough Council,805823,Collaborative Care Solutions,M42E,Adult Social Care Operations,Supplies and Services,"9,171.42",Aug-22
Slough Borough Council,805823,Collaborative Care Solutions,M42E,Adult Social Care Operations,Supplies and Services,"8,571.42",Aug-22
Slough Borough Council,805823,Collaborative Care Solutions,M42F,Adult Social Care Operations,Supplies and Services,"2,875.71",Aug-22
Slough Borough Council,805823,Collaborative Care Solutions,M42F,Adult Social Care Operations,Supplies and Services,"2,571.42",Aug-22
Slough Borough Council,805823,Collaborative Care Solutions,M44F,Adult Social Care Operations,Supplies and Services,"3,257.14",Aug-22
Slough Borough Council,805823,Collaborative Care Solutions,M44F,Adult Social Care Operations,Supplies and Services,"-4,317.85",Aug-22
Slough Borough Council,2535,Comfort Care Services,M42E,Adult Social Care Operations,Supplies and Services,775.00,Aug-22
Slough Borough Council,2535,Comfort Care Services,M42E,Adult Social Care Operations,Supplies and Services,"3,192.03",Aug-22
Slough Borough Council,2535,Comfort Care Services,M42E,Adult Social Care Operations,Supplies and Services,"2,635.00",Aug-22
Slough Borough Council,2535,Comfort Care Services,M42E,Adult Social Care Operations,Supplies and Services,"2,564.81",Aug-22
Slough Borough Council,2535,Comfort Care Services,M42E,Adult Social Care Operations,Supplies and Services,"1,538.88",Aug-22
Slough Borough Council,2535,Comfort Care Services,M42E,Adult Social Care Operations,Supplies and Services,"5,114.92",Aug-22
Slough Borough Council,2535,Comfort Care Services,M42E,Adult Social Care Operations,Supplies and Services,"1,165.82",Aug-22
Slough Borough Council,2535,Comfort Care Services,M42E,Adult Social Care Operations,Supplies and Services,564.20,Aug-22
Slough Borough Council,2535,Comfort Care Services,M42E,Adult Social Care Operations,Supplies and Services,"1,165.82",Aug-22
Slough Borough Council,2535,Comfort Care Services,M42E,Adult Social Care Operations,Supplies and Services,"2,587.09",Aug-22
Slough Borough Council,2535,Comfort Care Services,M42E,Adult Social Care Operations,Supplies and Services,"2,325.00",Aug-22
Slough Borough Council,2535,Comfort Care Services,M42F,Adult Social Care Operations,Supplies and Services,"2,635.00",Aug-22
Slough Borough Council,2535,Comfort Care Services,M42F,Adult Social Care Operations,Supplies and Services,"1,007.06",Aug-22
Slough Borough Council,2535,Comfort Care Services,M42F,Adult Social Care Operations,Supplies and Services,"1,477.99",Aug-22
Slough Borough Council,2535,Comfort Care Services,M42F,Adult Social Care Operations,Supplies and Services,"3,474.21",Aug-22
Slough Borough Council,2535,Comfort Care Services,M42F,Adult Social Care Operations,Supplies and Services,"1,632.15",Aug-22
Slough Borough Council,2535,Comfort Care Services,M42F,Adult Social Care Operations,Supplies and Services,839.21,Aug-22
Slough Borough Council,2535,Comfort Care Services,M42F,Adult Social Care Operations,Supplies and Services,"3,893.82",Aug-22
Slough Borough Council,2535,Comfort Care Services,M42F,Adult Social Care Operations,Supplies and Services,839.21,Aug-22
Slough Borough Council,2535,Comfort Care Services,M42F,Adult Social Care Operations,Supplies and Services,"2,635.00",Aug-22
Slough Borough Council,2535,Comfort Care Services,M42F,Adult Social Care Operations,Supplies and Services,839.21,Aug-22
Slough Borough Council,2535,Comfort Care Services,M42F,Adult Social Care Operations,Supplies and Services,"1,300.80",Aug-22
Slough Borough Council,2535,Comfort Care Services,M42F,Adult Social Care Operations,Supplies and Services,"2,635.00",Aug-22
Slough Borough Council,2535,Comfort Care Services,M42F,Adult Social Care Operations,Supplies and Services,"2,635.00",Aug-22
Slough Borough Council,2535,Comfort Care Services,M42F,Adult Social Care Operations,Supplies and Services,"1,749.29",Aug-22
Slough Borough Council,2535,Comfort Care Services,M42F,Adult Social Care Operations,Supplies and Services,"1,300.80",Aug-22
Slough Borough Council,2535,Comfort Care Services,M42F,Adult Social Care Operations,Supplies and Services,839.21,Aug-22
Slough Borough Council,2535,Comfort Care Services,M42F,Adult Social Care Operations,Supplies and Services,"2,635.00",Aug-22
Slough Borough Council,2535,Comfort Care Services,M42F,Adult Social Care Operations,Supplies and Services,"2,337.84",Aug-22
Slough Borough Council,2535,Comfort Care Services,M42F,Adult Social Care Operations,Supplies and Services,"2,635.00",Aug-22
Slough Borough Council,2535,Comfort Care Services,M44C,Adult Social Care Operations,Supplies and Services,"2,349.80",Aug-22
Slough Borough Council,2535,Comfort Care Services,M44E,Adult Social Care Operations,Supplies and Services,"2,141.66",Aug-22
Slough Borough Council,2535,Comfort Care Services,M44E,Adult Social Care Operations,Supplies and Services,"4,461.56",Aug-22
Slough Borough Council,2535,Comfort Care Services,M44F,Adult Social Care Operations,Supplies and Services,503.53,Aug-22
Slough Borough Council,2535,Comfort Care Services,M44F,Adult Social Care Operations,Supplies and Services,"1,317.50",Aug-22
Slough Borough Council,2535,Comfort Care Services,M44F,Adult Social Care Operations,Supplies and Services,"2,635.00",Aug-22
Slough Borough Council,2535,Comfort Care Services,M44F,Adult Social Care Operations,Supplies and Services,"1,317.50",Aug-22
Slough Borough Council,2535,Comfort Care Services,M44F,Adult Social Care Operations,Supplies and Services,"2,937.87",Aug-22
Slough Borough Council,2535,Comfort Care Services,M44F,Adult Social Care Operations,Supplies and Services,"1,888.26",Aug-22
Slough Borough Council,2535,Comfort Care Services,M44F,Adult Social Care Operations,Supplies and Services,"1,165.82",Aug-22
Slough Borough Council,2535,Comfort Care Services,M44F,Adult Social Care Operations,Supplies and Services,"1,317.50",Aug-22
Slough Borough Council,2535,Comfort Care Services,M44F,Adult Social Care Operations,Supplies and Services,"3,357.48",Aug-22
Slough Borough Council,2535,Comfort Care Services,M44F,Adult Social Care Operations,Supplies and Services,"3,474.21",Aug-22
Slough Borough Council,2535,Comfort Care Services,M44F,Adult Social Care Operations,Supplies and Services,"2,937.87",Aug-22
Slough Borough Council,2535,Comfort Care Services,M44F,Adult Social Care Operations,Supplies and Services,929.11,Aug-22
Slough Borough Council,2535,Comfort Care Services,M81D,Adult Social Care Operations,Supplies and Services,"2,635.00",Aug-22
Slough Borough Council,3840,Community Housing And Therapy,M80F,Adult Social Care Operations,Supplies and Services,"2,615.51",Aug-22
Slough Borough Council,1772,Computershare Voucher Services,B348,People,Supplies and Services,"2,351.00",Aug-22
Slough Borough Council,807468,"Connect Managed Services (UK) Ltd, trading as Conn3ct",A106,Customer,Supplies and Services,"2,392.48",Aug-22
Slough Borough Council,3290,Corporate Collections London Borough Of Hillingdon,M26E,Adult Social Care Operations,Supplies and Services,"8,255.50",Aug-22
Slough Borough Council,3290,Corporate Collections London Borough Of Hillingdon,M26E,Adult Social Care Operations,External Receipts,-550.60,Aug-22
Slough Borough Council,805278,Countrystyle Recycling Ltd,D342,Place Operations,Supplies and Services,"4,582.20",Aug-22
Slough Borough Council,805278,Countrystyle Recycling Ltd,D342,Place Operations,Supplies and Services,"9,927.40",Aug-22
Slough Borough Council,805656,Countrywide Moves (UK) Ltd,M80F,Adult Social Care Operations,Supplies and Services,662.50,Aug-22
Slough Borough Council,3670,Craegmoor Birches Grove Priory,M27F,Adult Social Care Operations,Supplies and Services,"3,805.68",Aug-22
Slough Borough Council,3670,Craegmoor Birches Grove Priory,M27F,Adult Social Care Operations,Supplies and Services,"1,984.04",Aug-22
Slough Borough Council,1638,Creative Support Ltd,A02L,Adult Social Care Operations,Supplies and Services,"1,065.60",Aug-22
Slough Borough Council,1638,Creative Support Ltd,A02L,Adult Social Care Operations,Supplies and Services,"1,348.65",Aug-22
Slough Borough Council,1638,Creative Support Ltd,A02L,Adult Social Care Operations,Supplies and Services,"1,431.90",Aug-22
Slough Borough Council,1638,Creative Support Ltd,A02L,Adult Social Care Operations,Supplies and Services,"1,565.10",Aug-22
Slough Borough Council,1638,Creative Support Ltd,A02L,Adult Social Care Operations,Supplies and Services,"1,165.50",Aug-22
Slough Borough Council,1638,Creative Support Ltd,M42E,Adult Social Care Operations,Supplies and Services,"3,013.65",Aug-22
Slough Borough Council,1638,Creative Support Ltd,M42E,Adult Social Care Operations,Supplies and Services,"2,021.04",Aug-22
Slough Borough Council,1638,Creative Support Ltd,M42E,Adult Social Care Operations,Supplies and Services,"1,182.15",Aug-22
Slough Borough Council,1638,Creative Support Ltd,M42E,Adult Social Care Operations,Supplies and Services,"2,214.45",Aug-22
Slough Borough Council,1638,Creative Support Ltd,M42E,Adult Social Care Operations,Supplies and Services,"4,428.90",Aug-22
Slough Borough Council,1638,Creative Support Ltd,M44E,Adult Social Care Operations,Supplies and Services,"1,465.20",Aug-22
Slough Borough Council,1638,Creative Support Ltd,M44E,Adult Social Care Operations,Supplies and Services,699.30,Aug-22
Slough Borough Council,1638,Creative Support Ltd,M44E,Adult Social Care Operations,Supplies and Services,999.00,Aug-22
Slough Borough Council,1638,Creative Support Ltd,M44E,Adult Social Care Operations,Supplies and Services,932.40,Aug-22
Slough Borough Council,1638,Creative Support Ltd,M44E,Adult Social Care Operations,Supplies and Services,982.35,Aug-22
Slough Borough Council,806983,Critiqom,H015,Finance & Commercial,Supplies and Services,887.97,Aug-22
Slough Borough Council,806983,Critiqom,H015,Finance & Commercial,Supplies and Services,"1,354.94",Aug-22
Slough Borough Council,806900,CYXTERA TECHNOLOGY UK LIMITED,B282,Digital and Strategic IT,Supplies and Services,"2,910.00",Aug-22
Slough Borough Council,806900,CYXTERA TECHNOLOGY UK LIMITED,B282,Digital and Strategic IT,Supplies and Services,"17,737.48",Aug-22
Slough Borough Council,807440,David Peplow,A04A,Adult Social Care Operations,Supplies and Services,"1,200.00",Aug-22
Slough Borough Council,808382,Department for Education,F382,Children & Families,Supplies and Services,"46,434.16",Aug-22
Slough Borough Council,805964,Design South East,D224,Place Regulation,Supplies and Services,"1,800.00",Aug-22
Slough Borough Council,805483,Direct Tyre Managenent Ltd,D610,Place Operations,Transport,"5,253.08",Aug-22
Slough Borough Council,805483,Direct Tyre Managenent Ltd,D620,Place Operations,Transport,703.40,Aug-22
Slough Borough Council,803306,Ditton Park Academy,E620,Children & Families,Supplies and Services,"22,616.68",Aug-22
Slough Borough Council,803306,Ditton Park Academy,B297,Finance & Commercial,Government Grants,"17,190.00",Aug-22
Slough Borough Council,1457,Dr Norman Gordon,D320,Place Operations,Premises,"2,150.00",Aug-22
Slough Borough Council,854,Drayton Fencing,P235,Capital,Capital Charges,"28,163.00",Aug-22
Slough Borough Council,808505,Dresgef Services Limited,F382,Children & Families,Supplies and Services,"2,177.25",Aug-22
Slough Borough Council,808505,Dresgef Services Limited,F382,Children & Families,Supplies and Services,887.25,Aug-22
Slough Borough Council,803177,Early Steps Preschool,F909,Children & Families,Supplies and Services,"6,270.20",Aug-22
Slough Borough Council,803301,Eden Girls School,E610,Children & Families,Supplies and Services,"3,233.34",Aug-22
Slough Borough Council,807001,Elegant Care Services Ltd,M44C,Adult Social Care Operations,Supplies and Services,"4,880.00",Aug-22
Slough Borough Council,807001,Elegant Care Services Ltd,M44C,Adult Social Care Operations,Supplies and Services,"5,228.57",Aug-22
Slough Borough Council,807001,Elegant Care Services Ltd,M44C,Adult Social Care Operations,Supplies and Services,"5,402.86",Aug-22
Slough Borough Council,807001,Elegant Care Services Ltd,M44C,Adult Social Care Operations,Supplies and Services,"5,402.86",Aug-22
Slough Borough Council,807001,Elegant Care Services Ltd,M44C,Adult Social Care Operations,Supplies and Services,"5,608.17",Aug-22
Slough Borough Council,3752,Endurance Health,M44C,Adult Social Care Operations,Supplies and Services,999.60,Aug-22
Slough Borough Council,3752,Endurance Health,M44C,Adult Social Care Operations,Supplies and Services,969.26,Aug-22
Slough Borough Council,3752,Endurance Health,M44C,Adult Social Care Operations,Supplies and Services,"1,187.62",Aug-22
Slough Borough Council,3752,Endurance Health,M44C,Adult Social Care Operations,Supplies and Services,"1,124.55",Aug-22
Slough Borough Council,3752,Endurance Health,M44C,Adult Social Care Operations,Supplies and Services,"1,439.73",Aug-22
Slough Borough Council,3752,Endurance Health,M44C,Adult Social Care Operations,Supplies and Services,820.78,Aug-22
Slough Borough Council,3752,Endurance Health,M44C,Adult Social Care Operations,Supplies and Services,"1,124.55",Aug-22
Slough Borough Council,3752,Endurance Health,M44C,Adult Social Care Operations,Supplies and Services,590.25,Aug-22
Slough Borough Council,3752,Endurance Health,M44C,Adult Social Care Operations,Supplies and Services,"2,464.54",Aug-22
Slough Borough Council,3752,Endurance Health,M44C,Adult Social Care Operations,Supplies and Services,"1,146.87",Aug-22
Slough Borough Council,3752,Endurance Health,M44C,Adult Social Care Operations,Supplies and Services,"2,249.10",Aug-22
Slough Borough Council,3752,Endurance Health,M44C,Adult Social Care Operations,Supplies and Services,740.79,Aug-22
Slough Borough Council,3752,Endurance Health,M44C,Adult Social Care Operations,Supplies and Services,"1,309.02",Aug-22
Slough Borough Council,3752,Endurance Health,M44C,Adult Social Care Operations,Supplies and Services,875.56,Aug-22
Slough Borough Council,3752,Endurance Health,M44C,Adult Social Care Operations,Supplies and Services,879.43,Aug-22
Slough Borough Council,3752,Endurance Health,M44C,Adult Social Care Operations,Supplies and Services,"1,112.96",Aug-22
Slough Borough Council,3752,Endurance Health,M44C,Adult Social Care Operations,Supplies and Services,"1,888.56",Aug-22
Slough Borough Council,3752,Endurance Health,M44C,Adult Social Care Operations,Supplies and Services,571.20,Aug-22
Slough Borough Council,3752,Endurance Health,M44C,Adult Social Care Operations,Supplies and Services,698.54,Aug-22
Slough Borough Council,3752,Endurance Health,M44C,Adult Social Care Operations,Supplies and Services,"1,367.31",Aug-22
Slough Borough Council,3752,Endurance Health,M44C,Adult Social Care Operations,Supplies and Services,747.31,Aug-22
Slough Borough Council,3752,Endurance Health,M44C,Adult Social Care Operations,Supplies and Services,"1,124.55",Aug-22
Slough Borough Council,3752,Endurance Health,M44C,Adult Social Care Operations,Supplies and Services,"1,124.55",Aug-22
Slough Borough Council,3752,Endurance Health,M44C,Adult Social Care Operations,Supplies and Services,"1,124.55",Aug-22
Slough Borough Council,3752,Endurance Health,M44C,Adult Social Care Operations,Supplies and Services,696.15,Aug-22
Slough Borough Council,3752,Endurance Health,M44C,Adult Social Care Operations,Supplies and Services,"1,968.61",Aug-22
Slough Borough Council,3752,Endurance Health,M44C,Adult Social Care Operations,Supplies and Services,632.20,Aug-22
Slough Borough Council,3752,Endurance Health,M44C,Adult Social Care Operations,Supplies and Services,"1,374.45",Aug-22
Slough Borough Council,3752,Endurance Health,M44D,Adult Social Care Operations,Supplies and Services,624.75,Aug-22
Slough Borough Council,3752,Endurance Health,M44D,Adult Social Care Operations,Supplies and Services,874.65,Aug-22
Slough Borough Council,3752,Endurance Health,M44D,Adult Social Care Operations,Supplies and Services,875.85,Aug-22
Slough Borough Council,3752,Endurance Health,M44D,Adult Social Care Operations,Supplies and Services,"2,499.00",Aug-22
Slough Borough Council,3752,Endurance Health,M44D,Adult Social Care Operations,Supplies and Services,968.67,Aug-22
Slough Borough Council,3752,Endurance Health,M44D,Adult Social Care Operations,Supplies and Services,"1,048.99",Aug-22
Slough Borough Council,3752,Endurance Health,M44F,Adult Social Care Operations,Supplies and Services,"1,856.40",Aug-22
Slough Borough Council,3752,Endurance Health,M48C,Adult Social Care Operations,Supplies and Services,848.78,Aug-22
Slough Borough Council,3752,Endurance Health,M48C,Adult Social Care Operations,Supplies and Services,"2,998.80",Aug-22
Slough Borough Council,805423,Enriched Care,M44D,Adult Social Care Operations,Supplies and Services,"3,741.70",Aug-22
Slough Borough Council,805423,Enriched Care,M44F,Adult Social Care Operations,Supplies and Services,"2,613.30",Aug-22
Slough Borough Council,805423,Enriched Care,M44F,Adult Social Care Operations,Supplies and Services,"2,879.90",Aug-22
Slough Borough Council,805423,Enriched Care,M44F,Adult Social Care Operations,Supplies and Services,"4,417.50",Aug-22
Slough Borough Council,805423,Enriched Care,M44F,Adult Social Care Operations,Supplies and Services,"2,768.30",Aug-22
Slough Borough Council,805423,Enriched Care,M80F,Adult Social Care Operations,Supplies and Services,"1,758.01",Aug-22
Slough Borough Council,807310,Enterprise Rent-A-Car UK Limited trading as Enterprise Flex-E-Rent,D880,Place Operations,Supplies and Services,677.43,Aug-22
Slough Borough Council,807310,Enterprise Rent-A-Car UK Limited trading as Enterprise Flex-E-Rent,D900,Place Operations,Transport,"27,639.10",Aug-22
Slough Borough Council,2677,Eton House Residential Home,M25C,Adult Social Care Operations,Supplies and Services,"3,420.00",Aug-22
Slough Borough Council,2677,Eton House Residential Home,M25C,Adult Social Care Operations,Supplies and Services,"3,420.00",Aug-22
Slough Borough Council,2677,Eton House Residential Home,M25D,Adult Social Care Operations,Supplies and Services,"3,096.43",Aug-22
Slough Borough Council,2677,Eton House Residential Home,M27C,Adult Social Care Operations,Supplies and Services,"2,571.43",Aug-22
Slough Borough Council,2677,Eton House Residential Home,M27C,Adult Social Care Operations,Supplies and Services,"2,571.43",Aug-22
Slough Borough Council,808344,Euro Housing UK LTD,H205,Housing (People) Services,Supplies and Services,"9,725.00",Aug-22
Slough Borough Council,806501,Excellent Healthcare Services Ltd,A07R,Adult Social Care Operations,Supplies and Services,740.37,Aug-22
Slough Borough Council,806501,Excellent Healthcare Services Ltd,M44C,Adult Social Care Operations,Supplies and Services,"1,667.96",Aug-22
Slough Borough Council,806501,Excellent Healthcare Services Ltd,M44C,Adult Social Care Operations,Supplies and Services,"2,144.52",Aug-22
Slough Borough Council,806501,Excellent Healthcare Services Ltd,M44C,Adult Social Care Operations,Supplies and Services,595.70,Aug-22
Slough Borough Council,806501,Excellent Healthcare Services Ltd,M44C,Adult Social Care Operations,Supplies and Services,714.84,Aug-22
Slough Borough Council,806501,Excellent Healthcare Services Ltd,M44C,Adult Social Care Operations,Supplies and Services,"1,072.26",Aug-22
Slough Borough Council,806501,Excellent Healthcare Services Ltd,M44C,Adult Social Care Operations,Supplies and Services,"2,229.62",Aug-22
Slough Borough Council,806501,Excellent Healthcare Services Ltd,M44C,Adult Social Care Operations,Supplies and Services,595.70,Aug-22
Slough Borough Council,806501,Excellent Healthcare Services Ltd,M44C,Adult Social Care Operations,Supplies and Services,833.98,Aug-22
Slough Borough Council,806501,Excellent Healthcare Services Ltd,M44C,Adult Social Care Operations,Supplies and Services,527.62,Aug-22
Slough Borough Council,806501,Excellent Healthcare Services Ltd,M44D,Adult Social Care Operations,Supplies and Services,595.70,Aug-22
Slough Borough Council,806501,Excellent Healthcare Services Ltd,M44F,Adult Social Care Operations,Supplies and Services,"2,382.80",Aug-22
Slough Borough Council,806501,Excellent Healthcare Services Ltd,M44F,Adult Social Care Operations,Supplies and Services,714.84,Aug-22
Slough Borough Council,806501,Excellent Healthcare Services Ltd,M44F,Adult Social Care Operations,Supplies and Services,953.12,Aug-22
Slough Borough Council,808079,Fairley House School,F462,Children & Families,Supplies and Services,"11,936.00",Aug-22
Slough Borough Council,805225,Falcon Surfacing Ltd,D880,Place Operations,Supplies and Services,"1,159.20",Aug-22
Slough Borough Council,805225,Falcon Surfacing Ltd,D880,Place Operations,Supplies and Services,"4,642.20",Aug-22
Slough Borough Council,805225,Falcon Surfacing Ltd,D880,Place Operations,Supplies and Services,"5,020.00",Aug-22
Slough Borough Council,805225,Falcon Surfacing Ltd,D880,Place Operations,Supplies and Services,"8,465.00",Aug-22
Slough Borough Council,805225,Falcon Surfacing Ltd,D880,Place Operations,Supplies and Services,"1,830.00",Aug-22
Slough Borough Council,805225,Falcon Surfacing Ltd,D880,Place Operations,Supplies and Services,"2,526.53",Aug-22
Slough Borough Council,805225,Falcon Surfacing Ltd,D880,Place Operations,Supplies and Services,"1,673.64",Aug-22
Slough Borough Council,805225,Falcon Surfacing Ltd,D880,Place Operations,Supplies and Services,767.22,Aug-22
Slough Borough Council,805225,Falcon Surfacing Ltd,D880,Place Operations,Supplies and Services,695.69,Aug-22
Slough Borough Council,805225,Falcon Surfacing Ltd,D880,Place Operations,Supplies and Services,"9,156.06",Aug-22
Slough Borough Council,4031,Family Support Practise Limited,A03D,Adult Social Care Operations,Supplies and Services,"2,189.25",Aug-22
Slough Borough Council,4031,Family Support Practise Limited,B277,Digital and Strategic IT,Supplies and Services,"1,800.00",Aug-22
Slough Borough Council,4031,Family Support Practise Limited,B277,Digital and Strategic IT,Supplies and Services,"1,800.00",Aug-22
Slough Borough Council,4031,Family Support Practise Limited,B277,Digital and Strategic IT,Supplies and Services,"1,021.65",Aug-22
Slough Borough Council,4031,Family Support Practise Limited,B277,Digital and Strategic IT,Supplies and Services,"1,800.00",Aug-22
Slough Borough Council,4031,Family Support Practise Limited,B277,Digital and Strategic IT,Supplies and Services,"1,800.00",Aug-22
Slough Borough Council,2678,Farnham Common Nurseries Ltd,P220,Capital,Capital Charges,"2,747.60",Aug-22
Slough Borough Council,2678,Farnham Common Nurseries Ltd,P220,Capital,Capital Charges,"1,762.00",Aug-22
Slough Borough Council,475,Farnham Road Surgery,A04C,Adult Social Care Operations,Supplies and Services,"13,093.66",Aug-22
Slough Borough Council,808524,Faye Cummins,F253,Children & Families,Agency Staff,952.00,Aug-22
Slough Borough Council,807620,FERN CONSULTING SERVICES LTD,D012,Place Strategy & Infrastructure,Supplies and Services,"5,633.75",Aug-22
Slough Borough Council,955,First Beeline Buses Ltd,D512,Place Strategy & Infrastructure,Supplies and Services,"84,849.75",Aug-22
Slough Borough Council,754,First Steps Day Nursery,F909,Children & Families,Supplies and Services,"10,168.53",Aug-22
Slough Borough Council,807987,Fit For Sport,F382,Children & Families,Supplies and Services,"3,187.80",Aug-22
Slough Borough Council,1626,Five Star Radio Cars Limited,F123,Education & Inclusion,Supplies and Services,"2,550.00",Aug-22
Slough Borough Council,1626,Five Star Radio Cars Limited,F123,Education & Inclusion,Supplies and Services,"1,396.50",Aug-22
Slough Borough Council,1626,Five Star Radio Cars Limited,F123,Education & Inclusion,Supplies and Services,"2,520.00",Aug-22
Slough Borough Council,2519,Fleet Tutors,F416,Education & Inclusion,Supplies and Services,"3,544.00",Aug-22
Slough Borough Council,2519,Fleet Tutors,F416,Education & Inclusion,Supplies and Services,"3,640.00",Aug-22
Slough Borough Council,2519,Fleet Tutors,F416,Education & Inclusion,Supplies and Services,"2,730.00",Aug-22
Slough Borough Council,2519,Fleet Tutors,F416,Education & Inclusion,Supplies and Services,"2,730.00",Aug-22
Slough Borough Council,2460,Forest Bridge School Ltd,F417,Education & Inclusion,Supplies and Services,833.33,Aug-22
Slough Borough Council,2460,Forest Bridge School Ltd,F551,Children & Families,Supplies and Services,"10,000.00",Aug-22
Slough Borough Council,2460,Forest Bridge School Ltd,F551,Children & Families,Supplies and Services,"2,966.67",Aug-22
Slough Borough Council,2460,Forest Bridge School Ltd,F551,Children & Families,Supplies and Services,"8,849.33",Aug-22
Slough Borough Council,2460,Forest Bridge School Ltd,F551,Children & Families,Supplies and Services,"10,158.67",Aug-22
Slough Borough Council,2460,Forest Bridge School Ltd,F551,Children & Families,Supplies and Services,"12,770.67",Aug-22
Slough Borough Council,2460,Forest Bridge School Ltd,F551,Children & Families,Supplies and Services,"14,638.00",Aug-22
Slough Borough Council,2460,Forest Bridge School Ltd,F551,Children & Families,Supplies and Services,"8,849.33",Aug-22
Slough Borough Council,2460,Forest Bridge School Ltd,F551,Children & Families,Supplies and Services,"10,158.67",Aug-22
Slough Borough Council,2460,Forest Bridge School Ltd,F551,Children & Families,Supplies and Services,"14,638.00",Aug-22
Slough Borough Council,2460,Forest Bridge School Ltd,F551,Children & Families,Supplies and Services,"8,849.33",Aug-22
Slough Borough Council,2460,Forest Bridge School Ltd,F551,Children & Families,Supplies and Services,"8,849.33",Aug-22
Slough Borough Council,2460,Forest Bridge School Ltd,F551,Children & Families,Supplies and Services,"12,770.67",Aug-22
Slough Borough Council,2460,Forest Bridge School Ltd,F551,Children & Families,Supplies and Services,"12,770.67",Aug-22
Slough Borough Council,2460,Forest Bridge School Ltd,F551,Children & Families,Supplies and Services,"12,770.67",Aug-22
Slough Borough Council,1204,Forget Me Not,M25C,Adult Social Care Operations,Supplies and Services,"3,180.00",Aug-22
Slough Borough Council,1204,Forget Me Not,M25C,Adult Social Care Operations,Supplies and Services,"3,180.00",Aug-22
Slough Borough Council,1204,Forget Me Not,M25C,Adult Social Care Operations,Supplies and Services,"3,800.00",Aug-22
Slough Borough Council,1204,Forget Me Not,M25C,Adult Social Care Operations,Supplies and Services,"3,800.00",Aug-22
Slough Borough Council,1204,Forget Me Not,M27C,Adult Social Care Operations,Supplies and Services,"3,570.00",Aug-22
Slough Borough Council,1204,Forget Me Not,M27C,Adult Social Care Operations,Supplies and Services,"3,199.76",Aug-22
Slough Borough Council,1204,Forget Me Not,M27C,Adult Social Care Operations,Supplies and Services,"3,570.00",Aug-22
Slough Borough Council,1204,Forget Me Not,M27C,Adult Social Care Operations,Supplies and Services,"3,199.76",Aug-22
Slough Borough Council,647,Foxborough Primary School,E620,Children & Families,Supplies and Services,"10,660.00",Aug-22
Slough Borough Council,647,Foxborough Primary School,E620,Children & Families,Supplies and Services,"10,660.00",Aug-22
Slough Borough Council,806480,Frontier NX Limited,A04C,Adult Social Care Operations,Supplies and Services,738.42,Aug-22
Slough Borough Council,1555,Gallagher Bassett,B018,Finance & Commercial,Supplies and Services,"32,390.46",Aug-22
Slough Borough Council,1555,Gallagher Bassett,B018,Finance & Commercial,Supplies and Services,"23,339.45",Aug-22
Slough Borough Council,1555,Gallagher Bassett,B018,Finance & Commercial,Supplies and Services,"62,000.00",Aug-22
Slough Borough Council,1758,Gas Advisory Services Limited,J606,Place Management,Supplies and Services,"2,813.00",Aug-22
Slough Borough Council,1758,Gas Advisory Services Limited,J606,Place Management,Supplies and Services,"4,118.00",Aug-22
Slough Borough Council,807952,Gazprom Energy,K526,Building Management,Premises,"44,530.62",Aug-22
Slough Borough Council,807952,Gazprom Energy,K526,Building Management,Premises,"149,786.29",Aug-22
Slough Borough Council,803332,Get Berkshire Active,B211,Community,Supplies and Services,563.82,Aug-22
Slough Borough Council,803332,Get Berkshire Active,B211,Community,Supplies and Services,634.21,Aug-22
Slough Borough Council,806204,GLOBAL MEDIATION LIMITED,F500,Education & Inclusion,Supplies and Services,800.00,Aug-22
Slough Borough Council,2830,GR Response Healthcare Ltd,A07R,Adult Social Care Operations,Supplies and Services,642.60,Aug-22
Slough Borough Council,2830,GR Response Healthcare Ltd,M44C,Adult Social Care Operations,Supplies and Services,"2,394.00",Aug-22
Slough Borough Council,2830,GR Response Healthcare Ltd,M44C,Adult Social Care Operations,Supplies and Services,665.00,Aug-22
Slough Borough Council,2830,GR Response Healthcare Ltd,M44C,Adult Social Care Operations,Supplies and Services,"2,394.00",Aug-22
Slough Borough Council,2830,GR Response Healthcare Ltd,M44C,Adult Social Care Operations,Supplies and Services,"1,862.00",Aug-22
Slough Borough Council,2830,GR Response Healthcare Ltd,M44C,Adult Social Care Operations,Supplies and Services,"2,546.00",Aug-22
Slough Borough Council,2830,GR Response Healthcare Ltd,M44C,Adult Social Care Operations,Supplies and Services,"2,000.32",Aug-22
Slough Borough Council,2830,GR Response Healthcare Ltd,M44C,Adult Social Care Operations,Supplies and Services,"2,749.60",Aug-22
Slough Borough Council,2830,GR Response Healthcare Ltd,M44C,Adult Social Care Operations,Supplies and Services,"1,500.24",Aug-22
Slough Borough Council,2830,GR Response Healthcare Ltd,M44C,Adult Social Care Operations,Supplies and Services,624.98,Aug-22
Slough Borough Council,2830,GR Response Healthcare Ltd,M44C,Adult Social Care Operations,Supplies and Services,"2,250.08",Aug-22
Slough Borough Council,2830,GR Response Healthcare Ltd,M44D,Adult Social Care Operations,Supplies and Services,"1,596.00",Aug-22
Slough Borough Council,2830,GR Response Healthcare Ltd,M44D,Adult Social Care Operations,Supplies and Services,931.00,Aug-22
Slough Borough Council,2830,GR Response Healthcare Ltd,M44D,Adult Social Care Operations,Supplies and Services,"2,394.00",Aug-22
Slough Borough Council,2830,GR Response Healthcare Ltd,M44D,Adult Social Care Operations,Supplies and Services,"2,250.08",Aug-22
Slough Borough Council,2830,GR Response Healthcare Ltd,M44D,Adult Social Care Operations,Supplies and Services,"2,250.08",Aug-22
Slough Borough Council,2830,GR Response Healthcare Ltd,M44D,Adult Social Care Operations,Supplies and Services,"1,007.00",Aug-22
Slough Borough Council,2830,GR Response Healthcare Ltd,M44F,Adult Social Care Operations,Supplies and Services,"2,128.00",Aug-22
Slough Borough Council,2830,GR Response Healthcare Ltd,M44F,Adult Social Care Operations,Supplies and Services,570.92,Aug-22
Slough Borough Council,2830,GR Response Healthcare Ltd,M48C,Adult Social Care Operations,Supplies and Services,"3,002.00",Aug-22
Slough Borough Council,2830,GR Response Healthcare Ltd,A06C,Adult Social Care Commissioning,Supplies and Services,"9,300.00",Aug-22
Slough Borough Council,804577,Green Monarch ZC2016 c/o Savills(UK) Limited,H205,Housing (People) Services,Premises,"3,583.33",Aug-22
Slough Borough Council,808378,Greensleeves Care,M17C,Adult Social Care Operations,Supplies and Services,"3,614.07",Aug-22
Slough Borough Council,808464,Greenstone Care,M51C,Adult Social Care Operations,Supplies and Services,"1,680.00",Aug-22
Slough Borough Council,808464,Greenstone Care,M51C,Adult Social Care Operations,Supplies and Services,"1,020.00",Aug-22
Slough Borough Council,805069,Grove Academy,E610,Children & Families,Supplies and Services,"7,894.30",Aug-22
Slough Borough Council,805069,Grove Academy,E610,Children & Families,Supplies and Services,"56,700.00",Aug-22
Slough Borough Council,804447,Grundon Waste Management Limited,D342,Place Operations,Supplies and Services,"451,078.90",Aug-22
Slough Borough Council,804447,Grundon Waste Management Limited,D342,Place Operations,Supplies and Services,"-6,240.34",Aug-22
Slough Borough Council,3228,H Plus Care Ltd,M18C,Adult Social Care Operations,Supplies and Services,"5,314.29",Aug-22
Slough Borough Council,3228,H Plus Care Ltd,M25C,Adult Social Care Operations,Supplies and Services,"5,535.71",Aug-22
Slough Borough Council,3228,H Plus Care Ltd,M26E,Adult Social Care Operations,Supplies and Services,"5,314.29",Aug-22
Slough Borough Council,806681,Hako Machines Ltd,D620,Place Operations,Supplies and Services,597.42,Aug-22
Slough Borough Council,804986,Havencare Ltd,M26E,Adult Social Care Operations,Supplies and Services,"1,279.50",Aug-22
Slough Borough Council,804986,Havencare Ltd,M26E,Adult Social Care Operations,Supplies and Services,"1,279.50",Aug-22
Slough Borough Council,804986,Havencare Ltd,M26E,Adult Social Care Operations,Supplies and Services,"1,279.50",Aug-22
Slough Borough Council,804986,Havencare Ltd,M26E,Adult Social Care Operations,Supplies and Services,"1,279.50",Aug-22
Slough Borough Council,1381,Haybrook College,E610,Children & Families,Supplies and Services,"41,024.16",Aug-22
Slough Borough Council,3784,Haybrook College Pru,E610,Children & Families,Supplies and Services,"54,200.00",Aug-22
Slough Borough Council,803753,Healthcare Homes,M15D,Adult Social Care Operations,Supplies and Services,"2,825.43",Aug-22
Slough Borough Council,803753,Healthcare Homes,M15D,Adult Social Care Operations,Supplies and Services,"2,734.29",Aug-22
Slough Borough Council,803753,Healthcare Homes,M15D,Adult Social Care Operations,Supplies and Services,"2,825.43",Aug-22
Slough Borough Council,803753,Healthcare Homes,M15D,Adult Social Care Operations,Supplies and Services,"2,825.43",Aug-22
Slough Borough Council,803753,Healthcare Homes,M17C,Adult Social Care Operations,Supplies and Services,"-2,985.72",Aug-22
Slough Borough Council,803753,Healthcare Homes,M17C,Adult Social Care Operations,Supplies and Services,942.86,Aug-22
Slough Borough Council,803753,Healthcare Homes,M17C,Adult Social Care Operations,Supplies and Services,"4,714.29",Aug-22
Slough Borough Council,803753,Healthcare Homes,M17C,Adult Social Care Operations,Supplies and Services,"4,871.43",Aug-22
Slough Borough Council,803753,Healthcare Homes,M17C,Adult Social Care Operations,Supplies and Services,"3,428.57",Aug-22
Slough Borough Council,803753,Healthcare Homes,M17C,Adult Social Care Operations,Supplies and Services,"3,300.00",Aug-22
Slough Borough Council,803753,Healthcare Homes,M17C,Adult Social Care Operations,Supplies and Services,"4,285.71",Aug-22
Slough Borough Council,803753,Healthcare Homes,M17C,Adult Social Care Operations,Supplies and Services,"4,714.29",Aug-22
Slough Borough Council,803753,Healthcare Homes,M17C,Adult Social Care Operations,Supplies and Services,"1,442.09",Aug-22
Slough Borough Council,803753,Healthcare Homes,M17C,Adult Social Care Operations,Supplies and Services,"2,629.69",Aug-22
Slough Borough Council,803753,Healthcare Homes,M17C,Adult Social Care Operations,Supplies and Services,"2,544.86",Aug-22
Slough Borough Council,803753,Healthcare Homes,M17C,Adult Social Care Operations,Supplies and Services,"4,428.57",Aug-22
Slough Borough Council,803753,Healthcare Homes,M17C,Adult Social Care Operations,Supplies and Services,"4,871.43",Aug-22
Slough Borough Council,803753,Healthcare Homes,M17C,Adult Social Care Operations,Supplies and Services,"2,629.69",Aug-22
Slough Borough Council,803753,Healthcare Homes,M17C,Adult Social Care Operations,Supplies and Services,"4,428.57",Aug-22
Slough Borough Council,803753,Healthcare Homes,M17C,Adult Social Care Operations,Supplies and Services,"4,871.43",Aug-22
Slough Borough Council,803753,Healthcare Homes,M17C,Adult Social Care Operations,Supplies and Services,"2,629.69",Aug-22
Slough Borough Council,803753,Healthcare Homes,M18C,Adult Social Care Operations,Supplies and Services,"4,871.43",Aug-22
Slough Borough Council,803753,Healthcare Homes,M18C,Adult Social Care Operations,Supplies and Services,"4,714.29",Aug-22
Slough Borough Council,803753,Healthcare Homes,M18C,Adult Social Care Operations,Supplies and Services,"4,871.43",Aug-22
Slough Borough Council,803753,Healthcare Homes,M18C,Adult Social Care Operations,Supplies and Services,"4,871.43",Aug-22
Slough Borough Council,803753,Healthcare Homes,M18C,Adult Social Care Operations,Supplies and Services,"4,285.71",Aug-22
Slough Borough Council,803753,Healthcare Homes,M27C,Adult Social Care Operations,Supplies and Services,"3,000.00",Aug-22
Slough Borough Council,803753,Healthcare Homes,M27C,Adult Social Care Operations,Supplies and Services,"3,100.00",Aug-22
Slough Borough Council,803753,Healthcare Homes,M27C,Adult Social Care Operations,Supplies and Services,"3,100.00",Aug-22
Slough Borough Council,803753,Healthcare Homes,M27C,Adult Social Care Operations,Supplies and Services,"3,100.00",Aug-22
Slough Borough Council,803753,Healthcare Homes,M29C,Adult Social Care Operations,Supplies and Services,"2,985.71",Aug-22
Slough Borough Council,803753,Healthcare Homes,M29C,Adult Social Care Operations,Supplies and Services,"1,571.43",Aug-22
Slough Borough Council,1956,Heathlands School,F551,Children & Families,Supplies and Services,"4,915.42",Aug-22
Slough Borough Council,807682,Help and Care,A02C,Adult Social Care Commissioning,Supplies and Services,"16,109.74",Aug-22
Slough Borough Council,807998,Heywood's Catering,F382,Children & Families,Supplies and Services,"10,000.00",Aug-22
Slough Borough Council,807998,Heywood's Catering,F382,Children & Families,Supplies and Services,"10,000.00",Aug-22
Slough Borough Council,807819,Hitch Marketing Ltd,B283,Finance & Commercial,Supplies and Services,"5,300.00",Aug-22
Slough Borough Council,2218,Holex,F210,Community,Supplies and Services,820.00,Aug-22
Slough Borough Council,850,Holy Family Catholic Primary School,E250,Children & Families,Supplies and Services,"187,692.96",Aug-22
Slough Borough Council,2917,Imperial Coaches Ltd,F123,Education & Inclusion,Supplies and Services,"3,055.00",Aug-22
Slough Borough Council,351,Imperial Polythene Products Ltd,D620,Place Operations,Supplies and Services,"1,225.00",Aug-22
Slough Borough Council,351,Imperial Polythene Products Ltd,D620,Place Operations,Supplies and Services,"1,450.00",Aug-22
Slough Borough Council,807666,Independence Home and Domicilary Care,M44F,Adult Social Care Operations,Supplies and Services,"3,348.00",Aug-22
Slough Borough Council,807666,Independence Home and Domicilary Care,M44F,Adult Social Care Operations,Supplies and Services,"3,381.17",Aug-22
Slough Borough Council,807666,Independence Home and Domicilary Care,M44F,Adult Social Care Operations,Supplies and Services,"1,544.58",Aug-22
Slough Borough Council,807666,Independence Home and Domicilary Care,M44F,Adult Social Care Operations,Supplies and Services,"2,940.66",Aug-22
Slough Borough Council,3570,Independent Supported Living And Disabilities Ltd,M42E,Adult Social Care Operations,Supplies and Services,"3,000.00",Aug-22
Slough Borough Council,3570,Independent Supported Living And Disabilities Ltd,M42E,Adult Social Care Operations,Supplies and Services,"3,000.00",Aug-22
Slough Borough Council,3570,Independent Supported Living And Disabilities Ltd,M44D,Adult Social Care Operations,Supplies and Services,"3,044.16",Aug-22
Slough Borough Council,3570,Independent Supported Living And Disabilities Ltd,M44D,Adult Social Care Operations,Supplies and Services,"3,044.16",Aug-22
Slough Borough Council,3570,Independent Supported Living And Disabilities Ltd,M44E,Adult Social Care Operations,Supplies and Services,"1,440.00",Aug-22
Slough Borough Council,3570,Independent Supported Living And Disabilities Ltd,M44E,Adult Social Care Operations,Supplies and Services,"3,570.00",Aug-22
Slough Borough Council,3570,Independent Supported Living And Disabilities Ltd,M44E,Adult Social Care Operations,Supplies and Services,"1,050.00",Aug-22
Slough Borough Council,3570,Independent Supported Living And Disabilities Ltd,M44E,Adult Social Care Operations,Supplies and Services,"4,212.00",Aug-22
Slough Borough Council,3570,Independent Supported Living And Disabilities Ltd,M44E,Adult Social Care Operations,Supplies and Services,"1,440.00",Aug-22
Slough Borough Council,3570,Independent Supported Living And Disabilities Ltd,M44E,Adult Social Care Operations,Supplies and Services,"4,212.00",Aug-22
Slough Borough Council,3570,Independent Supported Living And Disabilities Ltd,M44E,Adult Social Care Operations,Supplies and Services,"3,570.00",Aug-22
Slough Borough Council,3570,Independent Supported Living And Disabilities Ltd,M44E,Adult Social Care Operations,Supplies and Services,"1,050.00",Aug-22
Slough Borough Council,3570,Independent Supported Living And Disabilities Ltd,M81D,Adult Social Care Operations,Supplies and Services,"4,172.00",Aug-22
Slough Borough Council,808214,Infocus Charity,F462,Children & Families,Supplies and Services,"23,678.55",Aug-22
Slough Borough Council,807818,Intercity Technology Ltd,B282,Digital and Strategic IT,Supplies and Services,"51,105.27",Aug-22
Slough Borough Council,3500,Iqra Slough Islamic Primary School,E480,Children & Families,Supplies and Services,"69,021.32",Aug-22
Slough Borough Council,998,Iron Mountain Uk Ltd,B282,Digital and Strategic IT,Supplies and Services,589.73,Aug-22
Slough Borough Council,998,Iron Mountain Uk Ltd,B282,Digital and Strategic IT,Supplies and Services,"1,548.06",Aug-22
Slough Borough Council,998,Iron Mountain Uk Ltd,B342,Digital and Strategic IT,Supplies and Services,"1,900.00",Aug-22
Slough Borough Council,2919,Islamic Shakhsiyah Foundation,F909,Children & Families,Supplies and Services,"9,007.09",Aug-22
Slough Borough Council,807855,Isteni Property Holdings Ltd,H205,Housing (People) Services,Supplies and Services,"3,410.00",Aug-22
Slough Borough Council,806270,J2 RESEARCH LTD,F210,Community,Supplies and Services,"2,965.45",Aug-22
Slough Borough Council,753,Jack In The Box Day Nursery,F909,Children & Families,Supplies and Services,"11,997.83",Aug-22
Slough Borough Council,733,James Elliman  School,E620,Children & Families,Supplies and Services,"24,773.34",Aug-22
Slough Borough Council,803215,JC APPLICATIONS DEVELOPMENT LTD,B018,Finance & Commercial,Supplies and Services,"10,929.00",Aug-22
Slough Borough Council,805226,JD Surfacing & Civil Engineering Limited,D880,Place Operations,Supplies and Services,"1,855.00",Aug-22
Slough Borough Council,805226,JD Surfacing & Civil Engineering Limited,D880,Place Operations,Supplies and Services,"16,158.80",Aug-22
Slough Borough Council,805226,JD Surfacing & Civil Engineering Limited,D880,Place Operations,Supplies and Services,"7,980.00",Aug-22
Slough Borough Council,805226,JD Surfacing & Civil Engineering Limited,D880,Place Operations,Supplies and Services,"1,484.00",Aug-22
Slough Borough Council,805226,JD Surfacing & Civil Engineering Limited,D880,Place Operations,Supplies and Services,"8,550.00",Aug-22
Slough Borough Council,805226,JD Surfacing & Civil Engineering Limited,D880,Place Operations,Supplies and Services,"10,064.04",Aug-22
Slough Borough Council,807453,John F Hunt Regeneration Ltd,P405,Capital,Capital Charges,"11,740.87",Aug-22
Slough Borough Council,807453,John F Hunt Regeneration Ltd,P405,Capital,Capital Charges,"11,740.88",Aug-22
Slough Borough Council,807453,John F Hunt Regeneration Ltd,P405,Capital,Capital Charges,"11,362.13",Aug-22
Slough Borough Council,807453,John F Hunt Regeneration Ltd,P405,Capital,Capital Charges,"22,485.41",Aug-22
Slough Borough Council,804848,JPH Social Work LTD,B409,People,Supplies and Services,"2,250.00",Aug-22
Slough Borough Council,201,Kamal Enterprises Ltd,A04C,Adult Social Care Operations,Supplies and Services,745.00,Aug-22
Slough Borough Council,808528,Kane Taylor,F253,Children & Families,Agency Staff,"1,300.00",Aug-22
Slough Borough Council,803815,Kathys Childcare,F909,Children & Families,Supplies and Services,"1,315.32",Aug-22
Slough Borough Council,2620,Kcare Nursing Agency Ltd,M44D,Adult Social Care Operations,Supplies and Services,994.27,Aug-22
Slough Borough Council,2620,Kcare Nursing Agency Ltd,M44D,Adult Social Care Operations,Supplies and Services,"1,698.82",Aug-22
Slough Borough Council,2620,Kcare Nursing Agency Ltd,M44D,Adult Social Care Operations,Supplies and Services,"1,074.33",Aug-22
Slough Borough Council,2620,Kcare Nursing Agency Ltd,M44D,Adult Social Care Operations,Supplies and Services,"1,045.08",Aug-22
Slough Borough Council,2620,Kcare Nursing Agency Ltd,M44D,Adult Social Care Operations,Supplies and Services,"1,025.87",Aug-22
Slough Borough Council,2620,Kcare Nursing Agency Ltd,M48C,Adult Social Care Operations,Supplies and Services,"4,000.00",Aug-22
Slough Borough Council,804887,KCare Nursing Agency Ltd Supported House Living,M44F,Adult Social Care Operations,Supplies and Services,"2,493.50",Aug-22
Slough Borough Council,804875,Kennel Lane School,F551,Children & Families,Supplies and Services,"27,202.00",Aug-22
Slough Borough Council,804875,Kennel Lane School,F551,Children & Families,Supplies and Services,"8,360.00",Aug-22
Slough Borough Council,804875,Kennel Lane School,F551,Children & Families,Supplies and Services,"4,855.00",Aug-22
Slough Borough Council,808146,Kents Hill Care Home,M18C,Adult Social Care Operations,Supplies and Services,"3,764.29",Aug-22
Slough Borough Council,807742,Khalsa Primary School,E620,Children & Families,Supplies and Services,"10,003.34",Aug-22
Slough Borough Council,803916,Kharis Solutions,M44E,Adult Social Care Operations,Supplies and Services,"1,500.00",Aug-22
Slough Borough Council,1728,Kristiina Smith,C322,Community,Supplies and Services,"1,972.00",Aug-22
Slough Borough Council,1699,Langley Hall Primary Academy,E620,Children & Families,Supplies and Services,742.93,Aug-22
Slough Borough Council,3001,Langley Haven Care Homes Ltd,M25C,Adult Social Care Operations,Supplies and Services,"3,604.68",Aug-22
Slough Borough Council,3001,Langley Haven Care Homes Ltd,M25C,Adult Social Care Operations,Supplies and Services,"3,604.68",Aug-22
Slough Borough Council,3001,Langley Haven Care Homes Ltd,M26E,Adult Social Care Operations,Supplies and Services,"4,007.24",Aug-22
Slough Borough Council,3001,Langley Haven Care Homes Ltd,M26E,Adult Social Care Operations,Supplies and Services,"3,720.00",Aug-22
Slough Borough Council,3001,Langley Haven Care Homes Ltd,M27C,Adult Social Care Operations,Supplies and Services,"3,604.68",Aug-22
Slough Borough Council,3001,Langley Haven Care Homes Ltd,M27C,Adult Social Care Operations,Supplies and Services,"3,604.68",Aug-22
Slough Borough Council,3001,Langley Haven Care Homes Ltd,M27C,Adult Social Care Operations,Supplies and Services,"3,604.68",Aug-22
Slough Borough Council,3001,Langley Haven Care Homes Ltd,M27C,Adult Social Care Operations,Supplies and Services,"3,604.68",Aug-22
Slough Borough Council,3001,Langley Haven Care Homes Ltd,M27F,Adult Social Care Operations,Supplies and Services,"1,882.14",Aug-22
Slough Borough Council,3001,Langley Haven Care Homes Ltd,M27F,Adult Social Care Operations,Supplies and Services,"3,604.68",Aug-22
Slough Borough Council,3001,Langley Haven Care Homes Ltd,M27F,Adult Social Care Operations,Supplies and Services,"3,604.68",Aug-22
Slough Borough Council,3001,Langley Haven Care Homes Ltd,M27F,Adult Social Care Operations,Supplies and Services,"3,604.68",Aug-22
Slough Borough Council,3001,Langley Haven Care Homes Ltd,M27F,Adult Social Care Operations,Supplies and Services,"3,365.71",Aug-22
Slough Borough Council,3001,Langley Haven Care Homes Ltd,M27F,Adult Social Care Operations,Supplies and Services,"3,604.68",Aug-22
Slough Borough Council,803686,Lascelles Park Nursery,F909,Children & Families,Supplies and Services,"17,552.68",Aug-22
Slough Borough Council,3482,Leonard Cheshire Disability,M25D,Adult Social Care Operations,Supplies and Services,"5,889.34",Aug-22
Slough Borough Council,808423,Leo's Circus CIC,F382,Children & Families,Supplies and Services,"1,053.36",Aug-22
Slough Borough Council,469,LimeBlue Innovation Limited,H213,Adult Social Care Operations,Supplies and Services,"2,382.60",Aug-22
Slough Borough Council,804692,Little Diamonds Pre School,F909,Children & Families,Supplies and Services,"15,000.00",Aug-22
Slough Borough Council,808192,Little Musketeers,F382,Children & Families,Supplies and Services,"6,956.64",Aug-22
Slough Borough Council,3791,Littledown Pru,E610,Children & Families,Supplies and Services,"17,100.00",Aug-22
Slough Borough Council,667,Littledown School,E610,Children & Families,Supplies and Services,"68,282.64",Aug-22
Slough Borough Council,804544,London Borough of Harrow,B096,Governance,Indirect Employee Expenses,"129,893.52",Aug-22
Slough Borough Council,804544,London Borough of Harrow,B096,Governance,Indirect Employee Expenses,"130,460.44",Aug-22
Slough Borough Council,1282,Long Close School,F909,Children & Families,Supplies and Services,"6,859.24",Aug-22
Slough Borough Council,804585,Longlea Ltd,M18C,Adult Social Care Operations,Supplies and Services,"3,985.71",Aug-22
Slough Borough Council,2302,Look Ahead Care And Support,H216,Housing (People) Services,Supplies and Services,"2,431.64",Aug-22
Slough Borough Council,2302,Look Ahead Care And Support,H216,Housing (People) Services,Supplies and Services,"2,352.90",Aug-22
Slough Borough Council,2302,Look Ahead Care And Support,H216,Housing (People) Services,Supplies and Services,"2,352.90",Aug-22
Slough Borough Council,1195,Lynch Hill (Foundation Primary) School,E620,Children & Families,Supplies and Services,"34,266.66",Aug-22
Slough Borough Council,1771,Lynch Hill Academy,E620,Children & Families,Supplies and Services,"9,317.69",Aug-22
Slough Borough Council,1771,Lynch Hill Academy,E620,Children & Families,Supplies and Services,"-9,317.69",Aug-22
Slough Borough Council,1771,Lynch Hill Academy,E620,Children & Families,Supplies and Services,"7,317.69",Aug-22
Slough Borough Council,1941,Manor Green School,F449,Education & Inclusion,Supplies and Services,"3,307.50",Aug-22
Slough Borough Council,529,Marish Primary School,E620,Children & Families,Supplies and Services,"65,656.66",Aug-22
Slough Borough Council,1886,Matrix Scm,B023,Finance & Commercial,Agency Staff,"390,158.63",Aug-22
Slough Borough Council,1886,Matrix Scm,B023,Finance & Commercial,Agency Staff,"331,543.26",Aug-22
Slough Borough Council,1886,Matrix Scm,B023,Finance & Commercial,Agency Staff,"387,710.81",Aug-22
Slough Borough Council,807009,Medigold Health Consultancy Ltd,B349,People,Salaries and Wages-Employees Expenses,"5,211.25",Aug-22
Slough Borough Council,807009,Medigold Health Consultancy Ltd,B349,People,Salaries and Wages-Employees Expenses,"5,211.25",Aug-22
Slough Borough Council,1496,Mighty Acorns Day Nursery Ltd,F909,Children & Families,Supplies and Services,"16,235.90",Aug-22
Slough Borough Council,805121,MMCG (2) Limited,A02E,Adult Social Care Operations,Supplies and Services,"3,442.50",Aug-22
Slough Borough Council,805121,MMCG (2) Limited,A02E,Adult Social Care Operations,Supplies and Services,"-3,098.25",Aug-22
Slough Borough Council,805121,MMCG (2) Limited,A02E,Adult Social Care Operations,Supplies and Services,"3,557.25",Aug-22
Slough Borough Council,805121,MMCG (2) Limited,A03E,Adult Social Care Operations,Supplies and Services,"-3,327.75",Aug-22
Slough Borough Council,805121,MMCG (2) Limited,A03E,Adult Social Care Operations,Supplies and Services,"-3,098.25",Aug-22
Slough Borough Council,805121,MMCG (2) Limited,A03E,Adult Social Care Operations,Supplies and Services,650.25,Aug-22
Slough Borough Council,805121,MMCG (2) Limited,M15D,Adult Social Care Operations,Supplies and Services,"-2,123.25",Aug-22
Slough Borough Council,805121,MMCG (2) Limited,M15D,Adult Social Care Operations,Supplies and Services,"3,557.25",Aug-22
Slough Borough Council,805121,MMCG (2) Limited,M15D,Adult Social Care Operations,Supplies and Services,"3,557.25",Aug-22
Slough Borough Council,805121,MMCG (2) Limited,M15F,Adult Social Care Operations,Supplies and Services,"1,836.00",Aug-22
Slough Borough Council,805121,MMCG (2) Limited,M15F,Adult Social Care Operations,Supplies and Services,"3,098.25",Aug-22
Slough Borough Council,805121,MMCG (2) Limited,M15F,Adult Social Care Operations,Supplies and Services,"3,557.25",Aug-22
Slough Borough Council,805121,MMCG (2) Limited,M17C,Adult Social Care Operations,Supplies and Services,"3,442.50",Aug-22
Slough Borough Council,805121,MMCG (2) Limited,M17C,Adult Social Care Operations,Supplies and Services,"4,387.30",Aug-22
Slough Borough Council,805121,MMCG (2) Limited,M17C,Adult Social Care Operations,Supplies and Services,"3,557.25",Aug-22
Slough Borough Council,805121,MMCG (2) Limited,M17C,Adult Social Care Operations,Supplies and Services,"2,210.85",Aug-22
Slough Borough Council,805121,MMCG (2) Limited,M17C,Adult Social Care Operations,Supplies and Services,"3,557.25",Aug-22
Slough Borough Council,805121,MMCG (2) Limited,M17C,Adult Social Care Operations,Supplies and Services,"3,557.25",Aug-22
Slough Borough Council,805121,MMCG (2) Limited,M18C,Adult Social Care Operations,Supplies and Services,"4,031.55",Aug-22
Slough Borough Council,805121,MMCG (2) Limited,M18C,Adult Social Care Operations,Supplies and Services,"4,811.85",Aug-22
Slough Borough Council,805121,MMCG (2) Limited,M18C,Adult Social Care Operations,Supplies and Services,"4,245.77",Aug-22
Slough Borough Council,805121,MMCG (2) Limited,M18C,Adult Social Care Operations,Supplies and Services,"2,123.25",Aug-22
Slough Borough Council,805121,MMCG (2) Limited,M18C,Adult Social Care Operations,Supplies and Services,"3,557.25",Aug-22
Slough Borough Council,805121,MMCG (2) Limited,M18C,Adult Social Care Operations,Supplies and Services,"3,557.25",Aug-22
Slough Borough Council,805121,MMCG (2) Limited,M18C,Adult Social Care Operations,Supplies and Services,"1,652.40",Aug-22
Slough Borough Council,805121,MMCG (2) Limited,M18C,Adult Social Care Operations,Supplies and Services,"1,556.78",Aug-22
Slough Borough Council,805121,MMCG (2) Limited,M18C,Adult Social Care Operations,Supplies and Services,"1,080.00",Aug-22
Slough Borough Council,805121,MMCG (2) Limited,M18C,Adult Social Care Operations,Supplies and Services,"3,557.25",Aug-22
Slough Borough Council,805121,MMCG (2) Limited,M18C,Adult Social Care Operations,Supplies and Services,"4,387.30",Aug-22
Slough Borough Council,805121,MMCG (2) Limited,M18C,Adult Social Care Operations,Supplies and Services,"2,524.50",Aug-22
Slough Borough Council,805121,MMCG (2) Limited,M25C,Adult Social Care Operations,Supplies and Services,830.80,Aug-22
Slough Borough Council,805121,MMCG (2) Limited,M25C,Adult Social Care Operations,Supplies and Services,"3,557.25",Aug-22
Slough Borough Council,805121,MMCG (2) Limited,M25C,Adult Social Care Operations,Supplies and Services,"3,557.25",Aug-22
Slough Borough Council,805121,MMCG (2) Limited,M25C,Adult Social Care Operations,Supplies and Services,"3,557.25",Aug-22
Slough Borough Council,805121,MMCG (2) Limited,M27C,Adult Social Care Operations,Supplies and Services,"3,557.25",Aug-22
Slough Borough Council,805121,MMCG (2) Limited,M27C,Adult Social Care Operations,Supplies and Services,"3,557.25",Aug-22
Slough Borough Council,805121,MMCG (2) Limited,M27C,Adult Social Care Operations,Supplies and Services,"3,557.25",Aug-22
Slough Borough Council,805121,MMCG (2) Limited,M27C,Adult Social Care Operations,Supplies and Services,"3,557.25",Aug-22
Slough Borough Council,805121,MMCG (2) Limited,M27C,Adult Social Care Operations,Supplies and Services,"3,557.25",Aug-22
Slough Borough Council,805121,MMCG (2) Limited,M27C,Adult Social Care Operations,Supplies and Services,"3,557.25",Aug-22
Slough Borough Council,805121,MMCG (2) Limited,M27C,Adult Social Care Operations,Supplies and Services,"3,557.25",Aug-22
Slough Borough Council,805121,MMCG (2) Limited,M27C,Adult Social Care Operations,Supplies and Services,"3,557.25",Aug-22
Slough Borough Council,805121,MMCG (2) Limited,M28C,Adult Social Care Operations,Supplies and Services,"3,901.50",Aug-22
Slough Borough Council,805121,MMCG (2) Limited,M28C,Adult Social Care Operations,Supplies and Services,"3,289.25",Aug-22
Slough Borough Council,805121,MMCG (2) Limited,M28C,Adult Social Care Operations,Supplies and Services,"4,031.55",Aug-22
Slough Borough Council,805121,MMCG (2) Limited,M28C,Adult Social Care Operations,Supplies and Services,"3,098.25",Aug-22
Slough Borough Council,805121,MMCG (2) Limited,M28C,Adult Social Care Operations,Supplies and Services,"3,557.25",Aug-22
Slough Borough Council,805121,MMCG (2) Limited,M28C,Adult Social Care Operations,Supplies and Services,"1,147.50",Aug-22
Slough Borough Council,805121,MMCG (2) Limited,M28C,Adult Social Care Operations,Supplies and Services,"4,388.05",Aug-22
Slough Borough Council,805121,MMCG (2) Limited,M28C,Adult Social Care Operations,Supplies and Services,"3,327.75",Aug-22
Slough Borough Council,805121,MMCG (2) Limited,M29C,Adult Social Care Operations,Supplies and Services,573.75,Aug-22
Slough Borough Council,805121,MMCG (2) Limited,M29C,Adult Social Care Operations,Supplies and Services,"4,031.55",Aug-22
Slough Borough Council,805121,MMCG (2) Limited,M29C,Adult Social Care Operations,Supplies and Services,910.35,Aug-22
Slough Borough Council,805121,MMCG (2) Limited,M29C,Adult Social Care Operations,Supplies and Services,"3,557.25",Aug-22
Slough Borough Council,805121,MMCG (2) Limited,M29C,Adult Social Care Operations,Supplies and Services,"4,590.00",Aug-22
Slough Borough Council,805121,MMCG (2) Limited,A05M,Mental Health Services,Supplies and Services,"3,408.08",Aug-22
Slough Borough Council,805121,MMCG (2) Limited,A05M,Mental Health Services,Supplies and Services,-688.50,Aug-22
Slough Borough Council,805121,MMCG (2) Limited,A05M,Mental Health Services,Supplies and Services,"3,557.25",Aug-22
Slough Borough Council,805121,MMCG (2) Limited,A06C,Adult Social Care Commissioning,Supplies and Services,"-3,901.50",Aug-22
Slough Borough Council,2115,Montagu Evans Llp,B086,Place Strategy & Infrastructure,Capital Charges,"9,468.00",Aug-22
Slough Borough Council,2115,Montagu Evans Llp,B086,Place Strategy & Infrastructure,Capital Charges,"23,755.00",Aug-22
Slough Borough Council,2166,Montague Swift Recruitment Ltd,F640,Children & Families,Agency Staff,"7,500.00",Aug-22
Slough Borough Council,1140,Montem Guesthouse,H205,Housing (People) Services,Supplies and Services,"1,395.00",Aug-22
Slough Borough Council,1140,Montem Guesthouse,H205,Housing (People) Services,Supplies and Services,"1,705.00",Aug-22
Slough Borough Council,1140,Montem Guesthouse,H205,Housing (People) Services,Supplies and Services,"1,860.00",Aug-22
Slough Borough Council,1140,Montem Guesthouse,H205,Housing (People) Services,Supplies and Services,"1,395.00",Aug-22
Slough Borough Council,1140,Montem Guesthouse,H205,Housing (People) Services,Supplies and Services,"1,395.00",Aug-22
Slough Borough Council,1140,Montem Guesthouse,H205,Housing (People) Services,Supplies and Services,"1,457.00",Aug-22
Slough Borough Council,1140,Montem Guesthouse,H205,Housing (People) Services,Supplies and Services,"1,395.00",Aug-22
Slough Borough Council,1140,Montem Guesthouse,H205,Housing (People) Services,Supplies and Services,"1,550.00",Aug-22
Slough Borough Council,1140,Montem Guesthouse,H205,Housing (People) Services,Supplies and Services,750.00,Aug-22
Slough Borough Council,1140,Montem Guesthouse,H205,Housing (People) Services,Supplies and Services,"1,705.00",Aug-22
Slough Borough Council,1140,Montem Guesthouse,H205,Housing (People) Services,Supplies and Services,"1,457.00",Aug-22
Slough Borough Council,1140,Montem Guesthouse,H205,Housing (People) Services,Supplies and Services,"1,395.00",Aug-22
Slough Borough Council,1140,Montem Guesthouse,H205,Housing (People) Services,Supplies and Services,"1,550.00",Aug-22
Slough Borough Council,1140,Montem Guesthouse,H205,Housing (People) Services,Supplies and Services,"1,550.00",Aug-22
Slough Borough Council,1140,Montem Guesthouse,H205,Housing (People) Services,Supplies and Services,"1,705.00",Aug-22
Slough Borough Council,1140,Montem Guesthouse,H205,Housing (People) Services,Supplies and Services,"1,210.00",Aug-22
Slough Borough Council,1140,Montem Guesthouse,H205,Housing (People) Services,Supplies and Services,"1,550.00",Aug-22
Slough Borough Council,1140,Montem Guesthouse,H205,Housing (People) Services,Supplies and Services,"1,550.00",Aug-22
Slough Borough Council,1140,Montem Guesthouse,H205,Housing (People) Services,Supplies and Services,"1,550.00",Aug-22
Slough Borough Council,1140,Montem Guesthouse,H205,Housing (People) Services,Supplies and Services,"1,395.00",Aug-22
Slough Borough Council,1140,Montem Guesthouse,H205,Housing (People) Services,Supplies and Services,"1,550.00",Aug-22
Slough Borough Council,1140,Montem Guesthouse,H205,Housing (People) Services,Supplies and Services,"1,550.00",Aug-22
Slough Borough Council,1140,Montem Guesthouse,H205,Housing (People) Services,Supplies and Services,"1,550.00",Aug-22
Slough Borough Council,1140,Montem Guesthouse,H205,Housing (People) Services,Supplies and Services,"1,550.00",Aug-22
Slough Borough Council,1140,Montem Guesthouse,H205,Housing (People) Services,Supplies and Services,"1,705.00",Aug-22
Slough Borough Council,1140,Montem Guesthouse,H205,Housing (People) Services,Supplies and Services,"1,550.00",Aug-22
Slough Borough Council,1140,Montem Guesthouse,H205,Housing (People) Services,Supplies and Services,"1,705.00",Aug-22
Slough Borough Council,1140,Montem Guesthouse,H205,Housing (People) Services,Supplies and Services,"1,085.00",Aug-22
Slough Borough Council,1140,Montem Guesthouse,H205,Housing (People) Services,Supplies and Services,"1,395.00",Aug-22
Slough Borough Council,1140,Montem Guesthouse,H205,Housing (People) Services,Supplies and Services,"1,550.00",Aug-22
Slough Borough Council,1140,Montem Guesthouse,H205,Housing (People) Services,Supplies and Services,"1,550.00",Aug-22
Slough Borough Council,1140,Montem Guesthouse,H205,Housing (People) Services,Supplies and Services,"1,395.00",Aug-22
Slough Borough Council,1140,Montem Guesthouse,H205,Housing (People) Services,Supplies and Services,"1,240.00",Aug-22
Slough Borough Council,1140,Montem Guesthouse,H205,Housing (People) Services,Supplies and Services,"1,705.00",Aug-22
Slough Borough Council,1140,Montem Guesthouse,H205,Housing (People) Services,Supplies and Services,"1,457.00",Aug-22
Slough Borough Council,1140,Montem Guesthouse,H205,Housing (People) Services,Supplies and Services,"1,705.00",Aug-22
Slough Borough Council,1140,Montem Guesthouse,H205,Housing (People) Services,Supplies and Services,"1,705.00",Aug-22
Slough Borough Council,3302,Montem Primary School,E620,Children & Families,Supplies and Services,"32,631.03",Aug-22
Slough Borough Council,1702,Moonlight Pharmacy,A04C,Adult Social Care Operations,Supplies and Services,572.29,Aug-22
Slough Borough Council,808526,Mr James Wright,F253,Children & Families,Agency Staff,816.00,Aug-22
Slough Borough Council,806484,Mrs Parwinder Kaur Bhandal,H205,Housing (People) Services,Supplies and Services,"7,936.00",Aug-22
Slough Borough Council,806858,MUDDY BOOTS DAY NURSERY LTD,F909,Children & Families,Supplies and Services,"6,081.95",Aug-22
Slough Borough Council,805369,NAS Services Limited,M42E,Adult Social Care Operations,Supplies and Services,"8,442.50",Aug-22
Slough Borough Council,805369,NAS Services Limited,F462,Children & Families,Supplies and Services,"2,220.48",Aug-22
Slough Borough Council,805369,NAS Services Limited,F462,Children & Families,Supplies and Services,"1,791.26",Aug-22
Slough Borough Council,805369,NAS Services Limited,F462,Children & Families,Supplies and Services,"22,204.88",Aug-22
Slough Borough Council,805369,NAS Services Limited,F462,Children & Families,Supplies and Services,"15,288.00",Aug-22
Slough Borough Council,805369,NAS Services Limited,F462,Children & Families,Supplies and Services,"14,025.90",Aug-22
Slough Borough Council,805369,NAS Services Limited,F462,Children & Families,Supplies and Services,"1,402.60",Aug-22
Slough Borough Council,805369,NAS Services Limited,F462,Children & Families,Supplies and Services,"22,204.88",Aug-22
Slough Borough Council,805369,NAS Services Limited,F462,Children & Families,Supplies and Services,"2,220.48",Aug-22
Slough Borough Council,805369,NAS Services Limited,F462,Children & Families,Supplies and Services,"15,288.00",Aug-22
Slough Borough Council,805369,NAS Services Limited,F462,Children & Families,Supplies and Services,"1,528.80",Aug-22
Slough Borough Council,805369,NAS Services Limited,F462,Children & Families,Supplies and Services,"1,528.80",Aug-22
Slough Borough Council,805369,NAS Services Limited,F462,Children & Families,Supplies and Services,"15,288.00",Aug-22
Slough Borough Council,805369,NAS Services Limited,F462,Children & Families,Supplies and Services,"17,912.50",Aug-22
Slough Borough Council,805369,NAS Services Limited,F462,Children & Families,Supplies and Services,"22,204.88",Aug-22
Slough Borough Council,805369,NAS Services Limited,F462,Children & Families,Supplies and Services,"14,025.90",Aug-22
Slough Borough Council,805369,NAS Services Limited,F462,Children & Families,Supplies and Services,"15,288.00",Aug-22
Slough Borough Council,805369,NAS Services Limited,F462,Children & Families,Supplies and Services,"17,912.50",Aug-22
Slough Borough Council,805369,NAS Services Limited,F462,Children & Families,Supplies and Services,"22,204.88",Aug-22
Slough Borough Council,1945,Neem Tree Care Ltd,M17C,Adult Social Care Operations,Supplies and Services,"3,604.68",Aug-22
Slough Borough Council,1945,Neem Tree Care Ltd,M17C,Adult Social Care Operations,Supplies and Services,"3,488.40",Aug-22
Slough Borough Council,1945,Neem Tree Care Ltd,M17C,Adult Social Care Operations,Supplies and Services,"3,604.68",Aug-22
Slough Borough Council,1216,Network Rail Infrastructure Ltd,P213,Capital,Capital Charges,817.42,Aug-22
Slough Borough Council,808159,New College Worcester,F462,Children & Families,Supplies and Services,"53,294.00",Aug-22
Slough Borough Council,808159,New College Worcester,F462,Children & Families,Supplies and Services,"53,294.00",Aug-22
Slough Borough Council,1117,Newsquest Media Group Limited,B283,Finance & Commercial,Supplies and Services,837.74,Aug-22
Slough Borough Council,1117,Newsquest Media Group Limited,B324,Finance,Supplies and Services,500.00,Aug-22
Slough Borough Council,1117,Newsquest Media Group Limited,F382,Children & Families,Supplies and Services,996.40,Aug-22
Slough Borough Council,807860,Nominet UK,B282,Digital and Strategic IT,Supplies and Services,765.94,Aug-22
Slough Borough Council,805330,Norden Farm Centre Trust Limited,B175,Building Management,External Receipts,539.00,Aug-22
Slough Borough Council,803238,Oasis Care and Training Agency,A07R,Adult Social Care Operations,Supplies and Services,601.64,Aug-22
Slough Borough Council,803238,Oasis Care and Training Agency,M44C,Adult Social Care Operations,Supplies and Services,962.64,Aug-22
Slough Borough Council,803238,Oasis Care and Training Agency,M44C,Adult Social Care Operations,Supplies and Services,"2,045.60",Aug-22
Slough Borough Council,803238,Oasis Care and Training Agency,M44C,Adult Social Care Operations,Supplies and Services,545.78,Aug-22
Slough Borough Council,803238,Oasis Care and Training Agency,M44C,Adult Social Care Operations,Supplies and Services,"1,082.96",Aug-22
Slough Borough Council,803238,Oasis Care and Training Agency,M44C,Adult Social Care Operations,Supplies and Services,722.00,Aug-22
Slough Borough Council,803238,Oasis Care and Training Agency,M44C,Adult Social Care Operations,Supplies and Services,816.52,Aug-22
Slough Borough Council,803238,Oasis Care and Training Agency,M44C,Adult Social Care Operations,Supplies and Services,"1,151.72",Aug-22
Slough Borough Council,803238,Oasis Care and Training Agency,M44C,Adult Social Care Operations,Supplies and Services,"1,035.69",Aug-22
Slough Borough Council,803238,Oasis Care and Training Agency,M44C,Adult Social Care Operations,Supplies and Services,"2,681.64",Aug-22
Slough Borough Council,803238,Oasis Care and Training Agency,M44C,Adult Social Care Operations,Supplies and Services,"2,784.80",Aug-22
Slough Borough Council,803238,Oasis Care and Training Agency,M44C,Adult Social Care Operations,Supplies and Services,"1,357.92",Aug-22
Slough Borough Council,803238,Oasis Care and Training Agency,M44C,Adult Social Care Operations,Supplies and Services,"1,443.96",Aug-22
Slough Borough Council,803238,Oasis Care and Training Agency,M44C,Adult Social Care Operations,Supplies and Services,"2,165.96",Aug-22
Slough Borough Council,803238,Oasis Care and Training Agency,M44C,Adult Social Care Operations,Supplies and Services,842.32,Aug-22
Slough Borough Council,803238,Oasis Care and Training Agency,M44C,Adult Social Care Operations,Supplies and Services,601.64,Aug-22
Slough Borough Council,803238,Oasis Care and Training Agency,M44C,Adult Social Care Operations,Supplies and Services,962.64,Aug-22
Slough Borough Council,803238,Oasis Care and Training Agency,M44C,Adult Social Care Operations,Supplies and Services,842.32,Aug-22
Slough Borough Council,803238,Oasis Care and Training Agency,M44D,Adult Social Care Operations,Supplies and Services,842.32,Aug-22
Slough Borough Council,803238,Oasis Care and Training Agency,M44D,Adult Social Care Operations,Supplies and Services,"1,340.84",Aug-22
Slough Borough Council,803238,Oasis Care and Training Agency,M44D,Adult Social Care Operations,Supplies and Services,"2,165.96",Aug-22
Slough Borough Council,803238,Oasis Care and Training Agency,M44D,Adult Social Care Operations,Supplies and Services,979.84,Aug-22
Slough Borough Council,803238,Oasis Care and Training Agency,M44D,Adult Social Care Operations,Supplies and Services,670.40,Aug-22
Slough Borough Council,803238,Oasis Care and Training Agency,M44D,Adult Social Care Operations,Supplies and Services,"1,323.64",Aug-22
Slough Borough Council,803238,Oasis Care and Training Agency,M44D,Adult Social Care Operations,Supplies and Services,842.32,Aug-22
Slough Borough Council,803238,Oasis Care and Training Agency,M44D,Adult Social Care Operations,Supplies and Services,"2,165.96",Aug-22
Slough Borough Council,803238,Oasis Care and Training Agency,M44F,Adult Social Care Operations,Supplies and Services,"4,331.88",Aug-22
Slough Borough Council,803238,Oasis Care and Training Agency,M44F,Adult Social Care Operations,Supplies and Services,"1,375.20",Aug-22
Slough Borough Council,803238,Oasis Care and Training Agency,M85F,Adult Social Care Operations,Supplies and Services,550.08,Aug-22
Slough Borough Council,1767,Olive Tree Montessori Ltd,F909,Children & Families,Supplies and Services,"20,748.05",Aug-22
Slough Borough Council,3603,Olympia Transport Limited,F123,Education & Inclusion,Supplies and Services,"5,013.66",Aug-22
Slough Borough Council,804687,Optalis Limited,M42E,Adult Social Care Operations,Supplies and Services,"5,642.13",Aug-22
Slough Borough Council,804687,Optalis Limited,M42E,Adult Social Care Operations,Supplies and Services,"4,807.26",Aug-22
Slough Borough Council,803490,Optimum Specialised Home Limited,M26E,Adult Social Care Operations,Supplies and Services,"8,400.00",Aug-22
Slough Borough Council,803490,Optimum Specialised Home Limited,M26E,Adult Social Care Operations,Supplies and Services,"7,180.00",Aug-22
Slough Borough Council,1629,Opus Energy Limited,J015,Place Management,Premises,873.60,Aug-22
Slough Borough Council,1629,Opus Energy Limited,J015,Place Management,Premises,759.00,Aug-22
Slough Borough Council,1629,Opus Energy Limited,K526,Building Management,Premises,"2,624.38",Aug-22
Slough Borough Council,807272,Origin Transport Consultants Ltd,D224,Place Regulation,Supplies and Services,"6,062.99",Aug-22
Slough Borough Council,805011,Osborne Property Services Limited,J607,Place Management,Premises,"139,017.56",Aug-22
Slough Borough Council,805011,Osborne Property Services Limited,J606,Place Management,Supplies and Services,"116,260.98",Aug-22
Slough Borough Council,805011,Osborne Property Services Limited,P409,Capital,Capital Charges,"25,117.80",Aug-22
Slough Borough Council,805011,Osborne Property Services Limited,P413,Capital,Capital Charges,"25,457.30",Aug-22
Slough Borough Council,805011,Osborne Property Services Limited,P415,Capital,Capital Charges,"14,672.48",Aug-22
Slough Borough Council,805011,Osborne Property Services Limited,P417,Capital,Capital Charges,"32,659.93",Aug-22
Slough Borough Council,805011,Osborne Property Services Limited,P418,Capital,Capital Charges,"6,406.71",Aug-22
Slough Borough Council,805011,Osborne Property Services Limited,P421,Capital,Capital Charges,"25,859.09",Aug-22
Slough Borough Council,805011,Osborne Property Services Limited,P422,Capital,Capital Charges,"26,531.72",Aug-22
Slough Borough Council,805011,Osborne Property Services Limited,P431,Capital,Capital Charges,"6,657.77",Aug-22
Slough Borough Council,805011,Osborne Property Services Limited,P431,Capital,Capital Charges,733.78,Aug-22
Slough Borough Council,805011,Osborne Property Services Limited,P547,Capital,Capital Charges,"32,741.24",Aug-22
Slough Borough Council,805011,Osborne Property Services Limited,J607,Place Management,Supplies and Services,"127,775.29",Aug-22
Slough Borough Council,805011,Osborne Property Services Limited,J607,Place Management,Supplies and Services,"2,068.62",Aug-22
Slough Borough Council,3371,Our Lady Of Peace Catholic Primary and Nursery School,E340,Children & Families,Supplies and Services,"13,897.52",Aug-22
Slough Borough Council,294,Oxford Computer Consultants Ltd,A03D,Adult Social Care Operations,Supplies and Services,"6,989.69",Aug-22
Slough Borough Council,680,Oxford House Community Care,M44C,Adult Social Care Operations,Supplies and Services,726.29,Aug-22
Slough Borough Council,680,Oxford House Community Care,M44C,Adult Social Care Operations,Supplies and Services,784.93,Aug-22
Slough Borough Council,680,Oxford House Community Care,M44C,Adult Social Care Operations,Supplies and Services,941.31,Aug-22
Slough Borough Council,680,Oxford House Community Care,M44C,Adult Social Care Operations,Supplies and Services,"1,179.47",Aug-22
Slough Borough Council,680,Oxford House Community Care,M44C,Adult Social Care Operations,Supplies and Services,"1,092.95",Aug-22
Slough Borough Council,680,Oxford House Community Care,M44C,Adult Social Care Operations,Supplies and Services,"1,274.82",Aug-22
Slough Borough Council,680,Oxford House Community Care,M44C,Adult Social Care Operations,Supplies and Services,"2,450.54",Aug-22
Slough Borough Council,680,Oxford House Community Care,M44C,Adult Social Care Operations,Supplies and Services,"1,052.81",Aug-22
Slough Borough Council,680,Oxford House Community Care,M44C,Adult Social Care Operations,Supplies and Services,"1,144.58",Aug-22
Slough Borough Council,680,Oxford House Community Care,M44C,Adult Social Care Operations,Supplies and Services,578.46,Aug-22
Slough Borough Council,680,Oxford House Community Care,M44C,Adult Social Care Operations,Supplies and Services,"1,202.97",Aug-22
Slough Borough Council,680,Oxford House Community Care,M44D,Adult Social Care Operations,Supplies and Services,608.08,Aug-22
Slough Borough Council,680,Oxford House Community Care,M44D,Adult Social Care Operations,Supplies and Services,608.08,Aug-22
Slough Borough Council,680,Oxford House Community Care,M44D,Adult Social Care Operations,Supplies and Services,538.56,Aug-22
Slough Borough Council,680,Oxford House Community Care,M44D,Adult Social Care Operations,Supplies and Services,723.66,Aug-22
Slough Borough Council,680,Oxford House Community Care,M44D,Adult Social Care Operations,Supplies and Services,"1,092.66",Aug-22
Slough Borough Council,680,Oxford House Community Care,M45C,Adult Social Care Operations,Supplies and Services,"1,346.40",Aug-22
Slough Borough Council,680,Oxford House Community Care,M47D,Adult Social Care Operations,Supplies and Services,626.56,Aug-22
Slough Borough Council,680,Oxford House Community Care,M48C,Adult Social Care Operations,Supplies and Services,985.60,Aug-22
Slough Borough Council,680,Oxford House Community Care,M48C,Adult Social Care Operations,Supplies and Services,738.40,Aug-22
Slough Borough Council,2520,Paradigm Housing Group Ltd,H205,Housing (People) Services,Premises,"14,794.81",Aug-22
Slough Borough Council,3271,Partnership In Care Ltd,M27F,Adult Social Care Operations,Supplies and Services,"3,973.45",Aug-22
Slough Borough Council,3271,Partnership In Care Ltd,M27F,Adult Social Care Operations,Supplies and Services,"3,941.40",Aug-22
Slough Borough Council,3271,Partnership In Care Ltd,M27F,Adult Social Care Operations,Supplies and Services,"4,072.78",Aug-22
Slough Borough Council,3271,Partnership In Care Ltd,M27F,Adult Social Care Operations,Supplies and Services,"4,072.78",Aug-22
Slough Borough Council,2509,Parvaaz Project,M44E,Adult Social Care Operations,Supplies and Services,537.00,Aug-22
Slough Borough Council,2509,Parvaaz Project,M44E,Adult Social Care Operations,Supplies and Services,597.00,Aug-22
Slough Borough Council,2509,Parvaaz Project,M44E,Adult Social Care Operations,Supplies and Services,597.00,Aug-22
Slough Borough Council,2509,Parvaaz Project,M44E,Adult Social Care Operations,Supplies and Services,597.00,Aug-22
Slough Borough Council,2509,Parvaaz Project,M44E,Adult Social Care Operations,Supplies and Services,597.00,Aug-22
Slough Borough Council,2509,Parvaaz Project,M50E,Adult Social Care Operations,Supplies and Services,736.00,Aug-22
Slough Borough Council,2509,Parvaaz Project,M50E,Adult Social Care Operations,Supplies and Services,736.00,Aug-22
Slough Borough Council,2509,Parvaaz Project,M50E,Adult Social Care Operations,Supplies and Services,736.00,Aug-22
Slough Borough Council,2509,Parvaaz Project,M50E,Adult Social Care Operations,Supplies and Services,736.00,Aug-22
Slough Borough Council,2509,Parvaaz Project,M50E,Adult Social Care Operations,Supplies and Services,736.00,Aug-22
Slough Borough Council,1468,Patrol,D123,Place Strategy & Infrastructure,Supplies and Services,"3,132.30",Aug-22
Slough Borough Council,1468,Patrol,D010,Place Strategy & Infrastructure,Supplies and Services,"2,347.20",Aug-22
Slough Borough Council,824,Penn Wood Primary and Nursery School,E450,Children & Families,Supplies and Services,"296,503.34",Aug-22
Slough Borough Council,807611,Peopletoo Ltd,A01D,Adult Social Care Operations,Supplies and Services,"37,460.90",Aug-22
Slough Borough Council,1504,Permanent Futures Limited,F640,Children & Families,Supplies and Services,"1,500.00",Aug-22
Slough Borough Council,1504,Permanent Futures Limited,F410,Children & Families,Supplies and Services,"1,350.00",Aug-22
Slough Borough Council,1504,Permanent Futures Limited,F410,Children & Families,Supplies and Services,"1,350.00",Aug-22
Slough Borough Council,1504,Permanent Futures Limited,F410,Children & Families,Supplies and Services,"3,150.00",Aug-22
Slough Borough Council,1504,Permanent Futures Limited,F410,Children & Families,Supplies and Services,"1,350.00",Aug-22
Slough Borough Council,1504,Permanent Futures Limited,F410,Children & Families,Supplies and Services,"1,350.00",Aug-22
Slough Borough Council,1504,Permanent Futures Limited,F410,Children & Families,Supplies and Services,"1,350.00",Aug-22
Slough Borough Council,1504,Permanent Futures Limited,F410,Children & Families,Supplies and Services,"1,350.00",Aug-22
Slough Borough Council,1504,Permanent Futures Limited,F410,Children & Families,Supplies and Services,"1,350.00",Aug-22
Slough Borough Council,1504,Permanent Futures Limited,F640,Children & Families,Supplies and Services,"1,000.00",Aug-22
Slough Borough Council,1504,Permanent Futures Limited,F640,Children & Families,Supplies and Services,"4,500.00",Aug-22
Slough Borough Council,1504,Permanent Futures Limited,F640,Children & Families,Supplies and Services,"1,500.00",Aug-22
Slough Borough Council,1504,Permanent Futures Limited,F640,Children & Families,Supplies and Services,"1,500.00",Aug-22
Slough Borough Council,1504,Permanent Futures Limited,F640,Children & Families,Supplies and Services,"1,500.00",Aug-22
Slough Borough Council,1504,Permanent Futures Limited,F640,Children & Families,Supplies and Services,"1,500.00",Aug-22
Slough Borough Council,1504,Permanent Futures Limited,F640,Children & Families,Supplies and Services,"1,500.00",Aug-22
Slough Borough Council,1504,Permanent Futures Limited,F640,Children & Families,Supplies and Services,"1,500.00",Aug-22
Slough Borough Council,1504,Permanent Futures Limited,F640,Children & Families,Supplies and Services,"2,000.00",Aug-22
Slough Borough Council,1504,Permanent Futures Limited,F640,Children & Families,Supplies and Services,"1,500.00",Aug-22
Slough Borough Council,1504,Permanent Futures Limited,F640,Children & Families,Supplies and Services,"1,500.00",Aug-22
Slough Borough Council,807727,Phoenix Infant Academy c/o Thames Learning Trust,E620,Children & Families,Supplies and Services,"11,166.78",Aug-22
Slough Borough Council,3359,Pippins School,E370,Children & Families,Supplies and Services,"17,105.31",Aug-22
Slough Borough Council,807120,PJ Care Limited,M15D,Adult Social Care Operations,Supplies and Services,"9,831.65",Aug-22
Slough Borough Council,2537,Pre School Stars,F909,Children & Families,Supplies and Services,"6,682.55",Aug-22
Slough Borough Council,805398,PRIORITEYES LTD,A06E,Adult Social Care Operations,Supplies and Services,"7,620.00",Aug-22
Slough Borough Council,849,Priory Primary School,E380,Children & Families,Supplies and Services,"443,878.32",Aug-22
Slough Borough Council,808180,Proact,P084,Capital,Capital Charges,"2,200.00",Aug-22
Slough Borough Council,807660,Prospects Services,F558,Children & Families,Supplies and Services,"52,425.75",Aug-22
Slough Borough Council,1138,Qed Slough Ltd,F868,Children & Families,Supplies and Services,"598,954.43",Aug-22
Slough Borough Council,1138,Qed Slough Ltd,F868,Children & Families,Supplies and Services,"4,332.48",Aug-22
Slough Borough Council,805746,Qfree (Bristol) UK Ltd,D500,Place Strategy & Infrastructure,Premises,"1,592.00",Aug-22
Slough Borough Council,808360,Queensmead-Witherslack,F462,Children & Families,Supplies and Services,"31,027.00",Aug-22
Slough Borough Council,808360,Queensmead-Witherslack,F462,Children & Families,Supplies and Services,"34,012.00",Aug-22
Slough Borough Council,808200,Quest Recovery Services Ltd,M44C,Adult Social Care Operations,Supplies and Services,"2,016.00",Aug-22
Slough Borough Council,808200,Quest Recovery Services Ltd,M44C,Adult Social Care Operations,Supplies and Services,"1,008.00",Aug-22
Slough Borough Council,808200,Quest Recovery Services Ltd,M44C,Adult Social Care Operations,Supplies and Services,"1,456.00",Aug-22
Slough Borough Council,808200,Quest Recovery Services Ltd,M44C,Adult Social Care Operations,Supplies and Services,"1,008.00",Aug-22
Slough Borough Council,808200,Quest Recovery Services Ltd,M44C,Adult Social Care Operations,Supplies and Services,"1,008.00",Aug-22
Slough Borough Council,808200,Quest Recovery Services Ltd,M44E,Adult Social Care Operations,Supplies and Services,"1,792.00",Aug-22
Slough Borough Council,808200,Quest Recovery Services Ltd,M48C,Adult Social Care Operations,Supplies and Services,"2,016.00",Aug-22
Slough Borough Council,2685,R.E.A.C.H,M26E,Adult Social Care Operations,Supplies and Services,"7,404.56",Aug-22
Slough Borough Council,805444,Reading Transport Ltd,F123,Education & Inclusion,Supplies and Services,"19,250.00",Aug-22
Slough Borough Council,805444,Reading Transport Ltd,D512,Place Strategy & Infrastructure,Supplies and Services,"6,731.72",Aug-22
Slough Borough Council,806766,Red Brick Care Ltd,A07R,Adult Social Care Operations,Supplies and Services,765.00,Aug-22
Slough Borough Council,806766,Red Brick Care Ltd,M44C,Adult Social Care Operations,Supplies and Services,"1,111.05",Aug-22
Slough Borough Council,806766,Red Brick Care Ltd,M44C,Adult Social Care Operations,Supplies and Services,"2,142.00",Aug-22
Slough Borough Council,806766,Red Brick Care Ltd,M45C,Adult Social Care Operations,Supplies and Services,"2,142.00",Aug-22
Slough Borough Council,803819,Red Brick Care Ltd,F909,Children & Families,Supplies and Services,656.11,Aug-22
Slough Borough Council,805730,Redacted,F123,Education & Inclusion,Supplies and Services,538.20,Aug-22
Slough Borough Council,808145,Redacted,F123,Education & Inclusion,Supplies and Services,810.90,Aug-22
Slough Borough Council,808506,Redacted,F123,Education & Inclusion,Supplies and Services,594.00,Aug-22
Slough Borough Council,808506,Redacted,F123,Education & Inclusion,Supplies and Services,"1,584.00",Aug-22
Slough Borough Council,808506,Redacted,F123,Education & Inclusion,Supplies and Services,"1,881.00",Aug-22
Slough Borough Council,808507,Redacted,F123,Education & Inclusion,Supplies and Services,980.00,Aug-22
Slough Borough Council,806541,Redacted,F909,Children & Families,Supplies and Services,"20,229.02",Aug-22
Slough Borough Council,3903,Redacted,F909,Children & Families,Supplies and Services,"1,042.04",Aug-22
Slough Borough Council,805403,Redacted,F909,Children & Families,Supplies and Services,593.25,Aug-22
Slough Borough Council,805307,Redacted,F909,Children & Families,Supplies and Services,559.86,Aug-22
Slough Borough Council,3173,Redacted,F909,Children & Families,Supplies and Services,605.36,Aug-22
Slough Borough Council,808110,Redacted,F909,Children & Families,Supplies and Services,593.25,Aug-22
Slough Borough Council,3934,Redacted,F909,Children & Families,Supplies and Services,605.36,Aug-22
Slough Borough Council,806720,Redacted,F909,Children & Families,Supplies and Services,593.25,Aug-22
Slough Borough Council,3209,Redacted,F909,Children & Families,Supplies and Services,593.25,Aug-22
Slough Borough Council,804707,Redacted,F909,Children & Families,Supplies and Services,605.36,Aug-22
Slough Borough Council,804705,Redacted,F909,Children & Families,Supplies and Services,"1,186.50",Aug-22
Slough Borough Council,808473,Redacted,F909,Children & Families,Supplies and Services,605.36,Aug-22
Slough Borough Council,803824,Redacted,F909,Children & Families,Supplies and Services,"3,262.88",Aug-22
Slough Borough Council,807475,Redacted,F909,Children & Families,Supplies and Services,"4,983.50",Aug-22
Slough Borough Council,3251,Redacted,F909,Children & Families,Supplies and Services,536.75,Aug-22
Slough Borough Council,803853,Redacted,F909,Children & Families,Supplies and Services,839.43,Aug-22
Slough Borough Council,807647,Redacted,F909,Children & Families,Supplies and Services,871.71,Aug-22
Slough Borough Council,807836,Redacted,F909,Children & Families,Supplies and Services,"1,201.73",Aug-22
Slough Borough Council,805806,Redacted,F909,Children & Families,Supplies and Services,593.25,Aug-22
Slough Borough Council,806854,Reed Specialist Recruitment,B033,People,Salaries and Wages,783.38,Aug-22
Slough Borough Council,806854,Reed Specialist Recruitment,B033,People,Salaries and Wages,793.82,Aug-22
Slough Borough Council,806854,Reed Specialist Recruitment,B033,People,Salaries and Wages,778.15,Aug-22
Slough Borough Council,6,Re-Format Llp,P093,Capital,Capital Charges,"7,421.25",Aug-22
Slough Borough Council,808302,Reliant Care Limited,M44C,Adult Social Care Operations,Supplies and Services,"3,124.71",Aug-22
Slough Borough Council,807562,Renovo Farnborough Limited,M25D,Adult Social Care Operations,Supplies and Services,"8,714.76",Aug-22
Slough Borough Council,1893,Ricardo-Aea Limited,D308,Place Operations,Supplies and Services,"2,300.00",Aug-22
Slough Borough Council,807437,"Roadworks Information Ltd, trading as Elgin",D501,Place Strategy & Infrastructure,Supplies and Services,"6,446.08",Aug-22
Slough Borough Council,806930,Roselight Healthcare Service Limited,M42F,Adult Social Care Operations,Supplies and Services,"3,340.00",Aug-22
Slough Borough Council,806930,Roselight Healthcare Service Limited,M42F,Adult Social Care Operations,Supplies and Services,"2,360.00",Aug-22
Slough Borough Council,806930,Roselight Healthcare Service Limited,M44F,Adult Social Care Operations,Supplies and Services,"2,600.00",Aug-22
Slough Borough Council,806930,Roselight Healthcare Service Limited,M44F,Adult Social Care Operations,Supplies and Services,"3,340.00",Aug-22
Slough Borough Council,806930,Roselight Healthcare Service Limited,M44F,Adult Social Care Operations,Supplies and Services,"1,506.00",Aug-22
Slough Borough Council,806930,Roselight Healthcare Service Limited,M44F,Adult Social Care Operations,Supplies and Services,"1,592.52",Aug-22
Slough Borough Council,806930,Roselight Healthcare Service Limited,M44F,Adult Social Care Operations,Supplies and Services,"1,930.00",Aug-22
Slough Borough Council,806930,Roselight Healthcare Service Limited,M44F,Adult Social Care Operations,Supplies and Services,"1,765.16",Aug-22
Slough Borough Council,806930,Roselight Healthcare Service Limited,M44F,Adult Social Care Operations,Supplies and Services,"1,722.00",Aug-22
Slough Borough Council,696,Royal Borough Of Windsor And Maidenhead,M44E,Adult Social Care Operations,Supplies and Services,"3,503.57",Aug-22
Slough Borough Council,696,Royal Borough Of Windsor And Maidenhead,M44E,Adult Social Care Operations,Supplies and Services,"3,620.36",Aug-22
Slough Borough Council,696,Royal Borough Of Windsor And Maidenhead,M44E,Adult Social Care Operations,Supplies and Services,"4,657.07",Aug-22
Slough Borough Council,696,Royal Borough Of Windsor And Maidenhead,M44E,Adult Social Care Operations,Supplies and Services,"3,620.36",Aug-22
Slough Borough Council,696,Royal Borough Of Windsor And Maidenhead,M44E,Adult Social Care Operations,Supplies and Services,"3,620.36",Aug-22
Slough Borough Council,696,Royal Borough Of Windsor And Maidenhead,M44E,Adult Social Care Operations,Supplies and Services,"2,857.28",Aug-22
Slough Borough Council,696,Royal Borough Of Windsor And Maidenhead,B655,Adult Social Care Operations,Supplies and Services,"4,750.00",Aug-22
Slough Borough Council,696,Royal Borough Of Windsor And Maidenhead,F552,Children & Families,Supplies and Services,"2,500.00",Aug-22
Slough Borough Council,804860,Royal Masonic Benevolent Institution,M18C,Adult Social Care Operations,Supplies and Services,"4,207.14",Aug-22
Slough Borough Council,2168,RSM UK Risk Assurance Services LLP,B132,Finance,Supplies and Services,"120,250.00",Aug-22
Slough Borough Council,842,Ryvers Primary School,E620,Children & Families,Supplies and Services,"21,950.02",Aug-22
Slough Borough Council,806398,Saba Park UK Services Limited,D122,Place Strategy & Infrastructure,Premises,"14,512.21",Aug-22
Slough Borough Council,806398,Saba Park UK Services Limited,D123,Place Strategy & Infrastructure,Supplies and Services,"2,185.02",Aug-22
Slough Borough Council,806398,Saba Park UK Services Limited,D123,Place Strategy & Infrastructure,Supplies and Services,"2,339.10",Aug-22
Slough Borough Council,806398,Saba Park UK Services Limited,D123,Place Strategy & Infrastructure,Supplies and Services,"101,561.16",Aug-22
Slough Borough Council,806398,Saba Park UK Services Limited,D123,Place Strategy & Infrastructure,Supplies and Services,"14,492.05",Aug-22
Slough Borough Council,806398,Saba Park UK Services Limited,D122,Place Strategy & Infrastructure,Supplies and Services,"11,284.57",Aug-22
Slough Borough Council,806398,Saba Park UK Services Limited,D123,Place Strategy & Infrastructure,Supplies and Services,"1,792.73",Aug-22
Slough Borough Council,806398,Saba Park UK Services Limited,D010,Place Strategy & Infrastructure,Supplies and Services,512.34,Aug-22
Slough Borough Council,806398,Saba Park UK Services Limited,D010,Place Strategy & Infrastructure,Supplies and Services,"21,113.97",Aug-22
Slough Borough Council,805875,Salutem Shared Services,M25D,Adult Social Care Operations,Supplies and Services,"6,187.80",Aug-22
Slough Borough Council,805875,Salutem Shared Services,M26E,Adult Social Care Operations,Supplies and Services,"3,883.05",Aug-22
Slough Borough Council,805875,Salutem Shared Services,M26E,Adult Social Care Operations,Supplies and Services,628.03,Aug-22
Slough Borough Council,805875,Salutem Shared Services,M26E,Adult Social Care Operations,External Receipts,-628.02,Aug-22
Slough Borough Council,804350,Sandra's Childcare,F909,Children & Families,Supplies and Services,"1,271.25",Aug-22
Slough Borough Council,808259,Sandy Lane Primary School,F552,Children & Families,Supplies and Services,"10,789.47",Aug-22
Slough Borough Council,808259,Sandy Lane Primary School,F552,Children & Families,Supplies and Services,902.24,Aug-22
Slough Borough Council,3169,Seeability,M26E,Adult Social Care Operations,Supplies and Services,"11,377.00",Aug-22
Slough Borough Council,803999,Sequence Care Group,M26E,Adult Social Care Operations,Supplies and Services,"12,228.80",Aug-22
Slough Borough Council,808140,Service to the Aged Ltd,M15D,Adult Social Care Operations,Supplies and Services,"3,764.33",Aug-22
Slough Borough Council,2585,Seymour House,M26E,Adult Social Care Operations,Supplies and Services,"6,105.26",Aug-22
Slough Borough Council,2585,Seymour House,M26E,Adult Social Care Operations,Supplies and Services,"6,360.26",Aug-22
Slough Borough Council,2585,Seymour House,M26E,Adult Social Care Operations,Supplies and Services,"6,308.77",Aug-22
Slough Borough Council,2585,Seymour House,M26E,Adult Social Care Operations,Supplies and Services,"6,572.27",Aug-22
Slough Borough Council,2585,Seymour House,M26E,Adult Social Care Operations,Supplies and Services,"6,572.69",Aug-22
Slough Borough Council,2585,Seymour House,M26E,Adult Social Care Operations,Supplies and Services,"6,572.27",Aug-22
Slough Borough Council,2585,Seymour House,M26E,Adult Social Care Operations,External Receipts,-521.95,Aug-22
Slough Borough Council,807856,Shally Singh,H205,Housing (People) Services,Supplies and Services,"12,276.00",Aug-22
Slough Borough Council,805203,Shorts Agricultural Services Ltd,D342,Place Operations,Supplies and Services,"12,306.76",Aug-22
Slough Borough Council,805203,Shorts Agricultural Services Ltd,D342,Place Operations,Supplies and Services,"6,720.88",Aug-22
Slough Borough Council,805303,Sign Health,M27C,Adult Social Care Operations,Supplies and Services,"4,158.34",Aug-22
Slough Borough Council,805303,Sign Health,M27C,Adult Social Care Operations,Supplies and Services,"4,024.20",Aug-22
Slough Borough Council,805303,Sign Health,M27C,Adult Social Care Operations,Supplies and Services,"4,158.34",Aug-22
Slough Borough Council,805303,Sign Health,M27C,Adult Social Care Operations,Supplies and Services,"4,024.20",Aug-22
Slough Borough Council,805303,Sign Health,M27C,Adult Social Care Operations,Supplies and Services,"4,024.20",Aug-22
Slough Borough Council,805303,Sign Health,M27C,Adult Social Care Operations,Supplies and Services,"4,024.20",Aug-22
Slough Borough Council,805303,Sign Health,M27C,Adult Social Care Operations,Supplies and Services,"4,158.34",Aug-22
Slough Borough Council,805303,Sign Health,M27C,Adult Social Care Operations,Supplies and Services,"4,158.34",Aug-22
Slough Borough Council,805303,Sign Health,M27C,Adult Social Care Operations,Supplies and Services,"4,158.34",Aug-22
Slough Borough Council,805303,Sign Health,M27C,Adult Social Care Operations,Supplies and Services,"4,158.34",Aug-22
Slough Borough Council,805303,Sign Health,M27C,Adult Social Care Operations,Supplies and Services,"4,158.34",Aug-22
Slough Borough Council,805303,Sign Health,M27C,Adult Social Care Operations,Supplies and Services,"3,755.92",Aug-22
Slough Borough Council,805303,Sign Health,M27C,Adult Social Care Operations,Supplies and Services,"4,158.34",Aug-22
Slough Borough Council,804922,SIMPSON ENVIRONMENTAL SERVICE LTD,B082,Place Strategy & Infrastructure,Premises,"19,792.00",Aug-22
Slough Borough Council,804922,SIMPSON ENVIRONMENTAL SERVICE LTD,B082,Place Strategy & Infrastructure,Premises,"16,331.00",Aug-22
Slough Borough Council,808529,Slatter Cricket & Play Ltd,B179,Business Services,Premises,700.00,Aug-22
Slough Borough Council,807165,Slindon College,F462,Children & Families,Supplies and Services,"10,670.00",Aug-22
Slough Borough Council,1459,Slough And Eton C E School,E610,Children & Families,Supplies and Services,"22,033.00",Aug-22
Slough Borough Council,807834,Slough Children First,M99C,Children & Families,Supplies and Services,"2,619,512.80",Aug-22
Slough Borough Council,2466,Slough Childrens Services Trust Limited,F462,Children & Families,Supplies and Services,"14,208.59",Aug-22
Slough Borough Council,2466,Slough Childrens Services Trust Limited,F449,Education & Inclusion,Supplies and Services,"1,500.00",Aug-22
Slough Borough Council,2466,Slough Childrens Services Trust Limited,F462,Children & Families,Supplies and Services,"7,500.00",Aug-22
Slough Borough Council,276,Slough Community Transport & Shopmobility,F123,Education & Inclusion,Supplies and Services,"18,304.04",Aug-22
Slough Borough Council,1913,Slough Crossroads Caring For Carers,M44C,Adult Social Care Operations,Supplies and Services,738.00,Aug-22
Slough Borough Council,1913,Slough Crossroads Caring For Carers,M44C,Adult Social Care Operations,Supplies and Services,"1,120.00",Aug-22
Slough Borough Council,1913,Slough Crossroads Caring For Carers,M44C,Adult Social Care Operations,Supplies and Services,744.00,Aug-22
Slough Borough Council,1913,Slough Crossroads Caring For Carers,M44C,Adult Social Care Operations,Supplies and Services,"1,080.00",Aug-22
Slough Borough Council,1913,Slough Crossroads Caring For Carers,M44D,Adult Social Care Operations,Supplies and Services,528.00,Aug-22
Slough Borough Council,1913,Slough Crossroads Caring For Carers,M44E,Adult Social Care Operations,Supplies and Services,"1,040.00",Aug-22
Slough Borough Council,1913,Slough Crossroads Caring For Carers,M44E,Adult Social Care Operations,Supplies and Services,"1,040.00",Aug-22
Slough Borough Council,1913,Slough Crossroads Caring For Carers,M44E,Adult Social Care Operations,Supplies and Services,"1,200.00",Aug-22
Slough Borough Council,1913,Slough Crossroads Caring For Carers,M44E,Adult Social Care Operations,Supplies and Services,750.00,Aug-22
Slough Borough Council,1913,Slough Crossroads Caring For Carers,M44E,Adult Social Care Operations,Supplies and Services,790.00,Aug-22
Slough Borough Council,1913,Slough Crossroads Caring For Carers,M44E,Adult Social Care Operations,Supplies and Services,"1,200.00",Aug-22
Slough Borough Council,3503,Slough Day Nursery,F909,Children & Families,Supplies and Services,"3,010.95",Aug-22
Slough Borough Council,804380,Slough Refugee Council,B211,Community,Supplies and Services,"12,588.66",Aug-22
Slough Borough Council,803773,Socitm Limited,B007,Finance & Commercial,"Other Grants, Reimbursements and Contributions","14,995.00",Aug-22
Slough Borough Council,382,Softcat Plc,B342,Digital and Strategic IT,Supplies and Services,947.45,Aug-22
Slough Borough Council,114,Solutions 4 Health Ltd,A03C,Adult Social Care Commissioning,Supplies and Services,"29,250.00",Aug-22
Slough Borough Council,114,Solutions 4 Health Ltd,A01P,Public Health,Supplies and Services,"229,057.81",Aug-22
Slough Borough Council,114,Solutions 4 Health Ltd,A01P,Public Health,Supplies and Services,"60,000.00",Aug-22
Slough Borough Council,808407,SOS Electricals & Services Ltd,P093,Capital,Capital Charges,"-156,979.22",Aug-22
Slough Borough Council,808407,SOS Electricals & Services Ltd,P093,Capital,Capital Charges,"156,979.22",Aug-22
Slough Borough Council,808407,SOS Electricals & Services Ltd,P093,Capital,Capital Charges,"156,979.22",Aug-22
Slough Borough Council,807995,Sport4Kids,F382,Children & Families,Supplies and Services,"9,075.00",Aug-22
Slough Borough Council,807995,Sport4Kids,F382,Children & Families,Supplies and Services,"5,445.00",Aug-22
Slough Borough Council,807995,Sport4Kids,F382,Children & Families,Supplies and Services,"3,630.00",Aug-22
Slough Borough Council,808144,Sports Inc,F382,Children & Families,Supplies and Services,"11,877.33",Aug-22
Slough Borough Council,808144,Sports Inc,F382,Children & Families,Supplies and Services,"23,907.74",Aug-22
Slough Borough Council,808060,SSE,H203,Housing (People) Services,Premises,835.67,Aug-22
Slough Borough Council,803165,St Anthony's Catholic Primary School & Nursery,E620,Children & Families,Supplies and Services,"27,914.33",Aug-22
Slough Borough Council,3383,St Bernards Catholic Grammar School,E550,Children & Families,Supplies and Services,"475,114.19",Aug-22
Slough Borough Council,2918,St Bernard'S Rc Preparatory School,F909,Children & Families,Supplies and Services,"14,635.90",Aug-22
Slough Borough Council,805366,St Edmund Campion Catholic Primary School,F552,Children & Families,Supplies and Services,"1,859.00",Aug-22
Slough Borough Council,808250,St Elizabeth's Centre,F558,Children & Families,Supplies and Services,"19,164.37",Aug-22
Slough Borough Council,3547,St Ethelberts School,E620,Children & Families,Supplies and Services,"13,776.66",Aug-22
Slough Borough Council,1378,St Josephs Catholic High School,E610,Children & Families,Supplies and Services,"14,703.34",Aug-22
Slough Borough Council,806584,St Mattews Ltd,M15F,Adult Social Care Operations,Supplies and Services,"4,096.43",Aug-22
Slough Borough Council,806584,St Mattews Ltd,M15F,Adult Social Care Operations,Supplies and Services,"4,096.43",Aug-22
Slough Borough Council,805867,ST VINCENTS SCHOOL FOR THE BLIND,F462,Children & Families,Supplies and Services,"14,500.00",Aug-22
Slough Borough Council,468,Stannah Lift Services Ltd,P006,Capital,Capital Charges,"6,027.00",Aug-22
Slough Borough Council,808142,Step Together Ltd,M28E,Adult Social Care Operations,Supplies and Services,"1,040.00",Aug-22
Slough Borough Council,807113,Substance,C424,Community,Supplies and Services,"5,000.00",Aug-22
Slough Borough Council,2688,Sunnyside Nursing Home,M15D,Adult Social Care Operations,Supplies and Services,"2,991.76",Aug-22
Slough Borough Council,807889,Sunrise Transport Ltd,F123,Education & Inclusion,Supplies and Services,"4,705.00",Aug-22
Slough Borough Council,807889,Sunrise Transport Ltd,F123,Education & Inclusion,Supplies and Services,"1,648.80",Aug-22
Slough Borough Council,293,Surecare Slough,A07R,Adult Social Care Operations,Supplies and Services,"1,432.02",Aug-22
Slough Borough Council,293,Surecare Slough,A07R,Adult Social Care Operations,Supplies and Services,667.05,Aug-22
Slough Borough Council,293,Surecare Slough,A07R,Adult Social Care Operations,Supplies and Services,"1,202.17",Aug-22
Slough Borough Council,293,Surecare Slough,M41D,Adult Social Care Operations,Supplies and Services,"2,406.60",Aug-22
Slough Borough Council,293,Surecare Slough,M44C,Adult Social Care Operations,Supplies and Services,530.04,Aug-22
Slough Borough Council,293,Surecare Slough,M44C,Adult Social Care Operations,Supplies and Services,584.28,Aug-22
Slough Borough Council,293,Surecare Slough,M44C,Adult Social Care Operations,Supplies and Services,936.04,Aug-22
Slough Borough Council,293,Surecare Slough,M44C,Adult Social Care Operations,Supplies and Services,"2,406.60",Aug-22
Slough Borough Council,293,Surecare Slough,M44C,Adult Social Care Operations,Supplies and Services,936.04,Aug-22
Slough Borough Council,293,Surecare Slough,M44C,Adult Social Care Operations,Supplies and Services,"1,253.60",Aug-22
Slough Borough Council,293,Surecare Slough,M44C,Adult Social Care Operations,Supplies and Services,"2,406.60",Aug-22
Slough Borough Council,293,Surecare Slough,M44C,Adult Social Care Operations,Supplies and Services,"1,203.30",Aug-22
Slough Borough Council,293,Surecare Slough,M44C,Adult Social Care Operations,Supplies and Services,"1,767.02",Aug-22
Slough Borough Council,293,Surecare Slough,M44C,Adult Social Care Operations,Supplies and Services,"1,204.44",Aug-22
Slough Borough Council,293,Surecare Slough,M44C,Adult Social Care Operations,Supplies and Services,534.48,Aug-22
Slough Borough Council,293,Surecare Slough,M44C,Adult Social Care Operations,Supplies and Services,802.48,Aug-22
Slough Borough Council,293,Surecare Slough,M44C,Adult Social Care Operations,Supplies and Services,582.90,Aug-22
Slough Borough Council,293,Surecare Slough,M44C,Adult Social Care Operations,Supplies and Services,"2,659.36",Aug-22
Slough Borough Council,293,Surecare Slough,M44C,Adult Social Care Operations,Supplies and Services,918.40,Aug-22
Slough Borough Council,293,Surecare Slough,M44C,Adult Social Care Operations,Supplies and Services,"1,337.00",Aug-22
Slough Borough Council,293,Surecare Slough,M44C,Adult Social Care Operations,Supplies and Services,"1,407.04",Aug-22
Slough Borough Council,293,Surecare Slough,M44C,Adult Social Care Operations,Supplies and Services,509.36,Aug-22
Slough Borough Council,293,Surecare Slough,M44C,Adult Social Care Operations,Supplies and Services,935.90,Aug-22
Slough Borough Council,293,Surecare Slough,M44C,Adult Social Care Operations,Supplies and Services,534.80,Aug-22
Slough Borough Council,293,Surecare Slough,M44C,Adult Social Care Operations,Supplies and Services,"2,406.60",Aug-22
Slough Borough Council,293,Surecare Slough,M44C,Adult Social Care Operations,Supplies and Services,"2,674.00",Aug-22
Slough Borough Council,293,Surecare Slough,M44C,Adult Social Care Operations,Supplies and Services,"2,483.00",Aug-22
Slough Borough Council,293,Surecare Slough,M44C,Adult Social Care Operations,Supplies and Services,802.20,Aug-22
Slough Borough Council,293,Surecare Slough,M44C,Adult Social Care Operations,Supplies and Services,"1,604.40",Aug-22
Slough Borough Council,293,Surecare Slough,M44C,Adult Social Care Operations,Supplies and Services,"2,406.60",Aug-22
Slough Borough Council,293,Surecare Slough,M44C,Adult Social Care Operations,Supplies and Services,"2,941.68",Aug-22
Slough Borough Council,293,Surecare Slough,M44C,Adult Social Care Operations,Supplies and Services,"2,502.10",Aug-22
Slough Borough Council,293,Surecare Slough,M44C,Adult Social Care Operations,Supplies and Services,"1,203.30",Aug-22
Slough Borough Council,293,Surecare Slough,M44C,Adult Social Care Operations,Supplies and Services,"2,406.60",Aug-22
Slough Borough Council,293,Surecare Slough,M44C,Adult Social Care Operations,Supplies and Services,"2,880.29",Aug-22
Slough Borough Council,293,Surecare Slough,M44C,Adult Social Care Operations,Supplies and Services,"1,337.00",Aug-22
Slough Borough Council,293,Surecare Slough,M44C,Adult Social Care Operations,Supplies and Services,802.20,Aug-22
Slough Borough Council,293,Surecare Slough,M44C,Adult Social Care Operations,Supplies and Services,"2,406.60",Aug-22
Slough Borough Council,293,Surecare Slough,M44D,Adult Social Care Operations,Supplies and Services,"1,857.12",Aug-22
Slough Borough Council,293,Surecare Slough,M44D,Adult Social Care Operations,Supplies and Services,"1,184.88",Aug-22
Slough Borough Council,293,Surecare Slough,M44D,Adult Social Care Operations,Supplies and Services,"2,521.36",Aug-22
Slough Borough Council,293,Surecare Slough,M44D,Adult Social Care Operations,Supplies and Services,"2,406.60",Aug-22
Slough Borough Council,293,Surecare Slough,M44D,Adult Social Care Operations,Supplies and Services,"1,337.00",Aug-22
Slough Borough Council,293,Surecare Slough,M44D,Adult Social Care Operations,Supplies and Services,"2,406.60",Aug-22
Slough Borough Council,293,Surecare Slough,M44D,Adult Social Care Operations,Supplies and Services,"2,406.60",Aug-22
Slough Borough Council,293,Surecare Slough,M44D,Adult Social Care Operations,Supplies and Services,"2,024.44",Aug-22
Slough Borough Council,293,Surecare Slough,M44D,Adult Social Care Operations,Supplies and Services,"2,406.60",Aug-22
Slough Borough Council,293,Surecare Slough,M44E,Adult Social Care Operations,Supplies and Services,687.84,Aug-22
Slough Borough Council,293,Surecare Slough,M44E,Adult Social Care Operations,Supplies and Services,802.20,Aug-22
Slough Borough Council,293,Surecare Slough,M44F,Adult Social Care Operations,Supplies and Services,668.51,Aug-22
Slough Borough Council,293,Surecare Slough,M45C,Adult Social Care Operations,Supplies and Services,"2,439.35",Aug-22
Slough Borough Council,293,Surecare Slough,M45C,Adult Social Care Operations,Supplies and Services,"1,891.42",Aug-22
Slough Borough Council,293,Surecare Slough,M45C,Adult Social Care Operations,Supplies and Services,"2,559.68",Aug-22
Slough Borough Council,293,Surecare Slough,M48C,Adult Social Care Operations,Supplies and Services,"1,375.48",Aug-22
Slough Borough Council,293,Surecare Slough,M48C,Adult Social Care Operations,Supplies and Services,"2,731.34",Aug-22
Slough Borough Council,293,Surecare Slough,M48C,Adult Social Care Operations,Supplies and Services,"2,669.23",Aug-22
Slough Borough Council,293,Surecare Slough,M48C,Adult Social Care Operations,Supplies and Services,"2,406.60",Aug-22
Slough Borough Council,805794,SYMBOL UK LIMITED,F417,Education & Inclusion,Supplies and Services,963.33,Aug-22
Slough Borough Council,808334,Tankata Percussion,F253,Children & Families,Agency Staff,900.00,Aug-22
Slough Borough Council,1677,Taylorfitch,A04A,Adult Social Care Operations,Supplies and Services,709.96,Aug-22
Slough Borough Council,1677,Taylorfitch,A04A,Adult Social Care Operations,Supplies and Services,"1,495.00",Aug-22
Slough Borough Council,3369,Teeny Boppers Montessori School,F909,Children & Families,Supplies and Services,"8,354.28",Aug-22
Slough Borough Council,1596,Teleshore (Uk) Limited,D320,Place Operations,Supplies and Services,"2,591.25",Aug-22
Slough Borough Council,803382,Telford & Wrekin Council,F123,Education & Inclusion,Supplies and Services,"7,968.00",Aug-22
Slough Borough Council,806165,Terrell Limited,B089,Place Strategy & Infrastructure,Supplies and Services,"2,000.00",Aug-22
Slough Borough Council,807878,Thames Valley Buses,F123,Education & Inclusion,Supplies and Services,959.31,Aug-22
Slough Borough Council,807878,Thames Valley Buses,F123,Education & Inclusion,Supplies and Services,959.31,Aug-22
Slough Borough Council,807878,Thames Valley Buses,D512,Place Strategy & Infrastructure,Supplies and Services,"1,621.08",Aug-22
Slough Borough Council,807878,Thames Valley Buses,D512,Place Strategy & Infrastructure,Supplies and Services,"15,003.19",Aug-22
Slough Borough Council,807878,Thames Valley Buses,D512,Place Strategy & Infrastructure,Supplies and Services,"1,590.78",Aug-22
Slough Borough Council,807878,Thames Valley Buses,D512,Place Strategy & Infrastructure,Supplies and Services,"14,258.98",Aug-22
Slough Borough Council,807878,Thames Valley Buses,D512,Place Strategy & Infrastructure,Supplies and Services,"16,670.21",Aug-22
Slough Borough Council,803712,Thames Valley Transport Services LTD,F123,Education & Inclusion,Supplies and Services,"52,813.95",Aug-22
Slough Borough Council,803712,Thames Valley Transport Services LTD,F123,Education & Inclusion,Supplies and Services,"2,778.30",Aug-22
Slough Borough Council,803712,Thames Valley Transport Services LTD,F123,Education & Inclusion,Supplies and Services,"10,034.00",Aug-22
Slough Borough Council,803774,The Abbeyfield Maidenhead Society Ltd,M27C,Adult Social Care Operations,Supplies and Services,"2,862.28",Aug-22
Slough Borough Council,803774,The Abbeyfield Maidenhead Society Ltd,M27C,Adult Social Care Operations,Supplies and Services,"3,484.52",Aug-22
Slough Borough Council,803774,The Abbeyfield Maidenhead Society Ltd,M28C,Adult Social Care Operations,Supplies and Services,622.24,Aug-22
Slough Borough Council,808451,The Address Management,H205,Housing (People) Services,Supplies and Services,"1,705.00",Aug-22
Slough Borough Council,808451,The Address Management,H205,Housing (People) Services,Supplies and Services,"1,705.00",Aug-22
Slough Borough Council,808451,The Address Management,H205,Housing (People) Services,Supplies and Services,"1,705.00",Aug-22
Slough Borough Council,805247,The Eden Academy T/A Pentland Field School,F551,Children & Families,Supplies and Services,"33,115.07",Aug-22
Slough Borough Council,653,The Godolphin Junior Academy,F200,Education & Inclusion,Salaries and Wages-Employees Expenses,957.82,Aug-22
Slough Borough Council,653,The Godolphin Junior Academy,E620,Children & Families,Supplies and Services,"2,316.68",Aug-22
Slough Borough Council,806838,The Green Room Foundation Ltd,F462,Children & Families,Supplies and Services,"22,500.00",Aug-22
Slough Borough Council,803300,The Langley Academy Primary,E610,Children & Families,Supplies and Services,"33,646.66",Aug-22
Slough Borough Council,806847,The Langley Heritage Primary Academy,E620,Children & Families,Supplies and Services,"19,651.46",Aug-22
Slough Borough Council,805400,The Leading Care Company,M44C,Adult Social Care Operations,Supplies and Services,"1,106.24",Aug-22
Slough Borough Council,805400,The Leading Care Company,M44C,Adult Social Care Operations,Supplies and Services,"1,109.60",Aug-22
Slough Borough Council,805400,The Leading Care Company,M44C,Adult Social Care Operations,Supplies and Services,"1,028.10",Aug-22
Slough Borough Council,805400,The Leading Care Company,M44C,Adult Social Care Operations,Supplies and Services,"1,747.46",Aug-22
Slough Borough Council,805400,The Leading Care Company,M44C,Adult Social Care Operations,Supplies and Services,740.56,Aug-22
Slough Borough Council,805400,The Leading Care Company,M44C,Adult Social Care Operations,Supplies and Services,630.53,Aug-22
Slough Borough Council,805400,The Leading Care Company,M44C,Adult Social Care Operations,Supplies and Services,673.07,Aug-22
Slough Borough Council,805400,The Leading Care Company,M44C,Adult Social Care Operations,Supplies and Services,840.04,Aug-22
Slough Borough Council,805400,The Leading Care Company,M44D,Adult Social Care Operations,Supplies and Services,"3,800.16",Aug-22
Slough Borough Council,805400,The Leading Care Company,M44D,Adult Social Care Operations,Supplies and Services,"1,067.86",Aug-22
Slough Borough Council,805400,The Leading Care Company,M48C,Adult Social Care Operations,Supplies and Services,"3,800.16",Aug-22
Slough Borough Council,3116,The Oratory Montessori Day Nursery,F909,Children & Families,Supplies and Services,"13,699.58",Aug-22
Slough Borough Council,808406,The OT Practice Limited,F417,Education & Inclusion,Supplies and Services,895.00,Aug-22
Slough Borough Council,803338,The Owl Centre,F417,Education & Inclusion,Supplies and Services,"1,174.20",Aug-22
Slough Borough Council,803338,The Owl Centre,F417,Education & Inclusion,Supplies and Services,"1,266.30",Aug-22
Slough Borough Council,803338,The Owl Centre,F417,Education & Inclusion,Supplies and Services,934.20,Aug-22
Slough Borough Council,803338,The Owl Centre,F417,Education & Inclusion,Supplies and Services,543.60,Aug-22
Slough Borough Council,807439,The Pines,M26E,Adult Social Care Operations,Supplies and Services,"4,974.17",Aug-22
Slough Borough Council,807439,The Pines,M26E,Adult Social Care Operations,Supplies and Services,"3,156.51",Aug-22
Slough Borough Council,2898,The Regard Partnership Ltd,M26E,Adult Social Care Operations,Supplies and Services,"7,231.77",Aug-22
Slough Borough Council,2898,The Regard Partnership Ltd,M26E,Adult Social Care Operations,Supplies and Services,"6,107.75",Aug-22
Slough Borough Council,2898,The Regard Partnership Ltd,M42E,Adult Social Care Operations,Supplies and Services,"5,353.17",Aug-22
Slough Borough Council,2898,The Regard Partnership Ltd,M42E,Adult Social Care Operations,Supplies and Services,"5,129.35",Aug-22
Slough Borough Council,2898,The Regard Partnership Ltd,M42E,Adult Social Care Operations,Supplies and Services,"6,520.63",Aug-22
Slough Borough Council,2898,The Regard Partnership Ltd,M42E,Adult Social Care Operations,Supplies and Services,"6,743.47",Aug-22
Slough Borough Council,2898,The Regard Partnership Ltd,M42E,Adult Social Care Operations,Supplies and Services,"5,007.74",Aug-22
Slough Borough Council,2898,The Regard Partnership Ltd,M42E,Adult Social Care Operations,Supplies and Services,"6,559.16",Aug-22
Slough Borough Council,2898,The Regard Partnership Ltd,M44D,Adult Social Care Operations,Supplies and Services,"4,519.14",Aug-22
Slough Borough Council,2898,The Regard Partnership Ltd,M44E,Adult Social Care Operations,Supplies and Services,"5,594.70",Aug-22
Slough Borough Council,807988,The Sports Collective,F382,Children & Families,Supplies and Services,"5,460.00",Aug-22
Slough Borough Council,821,The Westgate School,E610,Children & Families,Supplies and Services,"8,717.00",Aug-22
Slough Borough Council,2999,The Windsor Boys School,F552,Children & Families,Supplies and Services,"1,239.00",Aug-22
Slough Borough Council,805915,Time 4 U Limited,M44F,Adult Social Care Operations,Supplies and Services,"3,139.05",Aug-22
Slough Borough Council,806360,Tiny Turtles Daycare Nursery Ltd,F550,Children & Families,Supplies and Services,"-2,940.00",Aug-22
Slough Borough Council,806360,Tiny Turtles Daycare Nursery Ltd,F909,Children & Families,Supplies and Services,"14,977.65",Aug-22
Slough Borough Council,803194,TMP Worldwide,B348,People,Indirect Employee Expenses,795.00,Aug-22
Slough Borough Council,803194,TMP Worldwide,B348,People,Indirect Employee Expenses,525.00,Aug-22
Slough Borough Council,803194,TMP Worldwide,B348,People,Indirect Employee Expenses,795.00,Aug-22
Slough Borough Council,171,Toad Hall Nursery,F909,Children & Families,Supplies and Services,"23,509.31",Aug-22
Slough Borough Council,1010,Trading Standards South East Ltd,D303,Place Regulation,Supplies and Services,"5,650.00",Aug-22
Slough Borough Council,808519,Tuition Extra Limited,F449,Education & Inclusion,Supplies and Services,627.84,Aug-22
Slough Borough Council,1387,Ultimate Incentive Ltd,B283,Finance & Commercial,Supplies and Services,"1,226.00",Aug-22
Slough Borough Council,807414,Uniq Health Care,M42E,Adult Social Care Operations,Supplies and Services,"1,228.00",Aug-22
Slough Borough Council,807414,Uniq Health Care,M42E,Adult Social Care Operations,Supplies and Services,"1,228.00",Aug-22
Slough Borough Council,807414,Uniq Health Care,M42E,Adult Social Care Operations,Supplies and Services,"1,228.00",Aug-22
Slough Borough Council,807414,Uniq Health Care,M42E,Adult Social Care Operations,Supplies and Services,"1,228.00",Aug-22
Slough Borough Council,807414,Uniq Health Care,M42E,Adult Social Care Operations,Supplies and Services,"1,228.00",Aug-22
Slough Borough Council,3953,Upton Court Grammar School,E610,Children & Families,Supplies and Services,"2,000.00",Aug-22
Slough Borough Council,577,Upton Park Hotel,H205,Housing (People) Services,Supplies and Services,"1,372.00",Aug-22
Slough Borough Council,577,Upton Park Hotel,H205,Housing (People) Services,Supplies and Services,"1,372.00",Aug-22
Slough Borough Council,577,Upton Park Hotel,H205,Housing (People) Services,Supplies and Services,"1,372.00",Aug-22
Slough Borough Council,577,Upton Park Hotel,H205,Housing (People) Services,Supplies and Services,"1,372.00",Aug-22
Slough Borough Council,577,Upton Park Hotel,H205,Housing (People) Services,Supplies and Services,"1,372.00",Aug-22
Slough Borough Council,577,Upton Park Hotel,H205,Housing (People) Services,Supplies and Services,"1,176.00",Aug-22
Slough Borough Council,577,Upton Park Hotel,H205,Housing (People) Services,Supplies and Services,"1,372.00",Aug-22
Slough Borough Council,577,Upton Park Hotel,H205,Housing (People) Services,Supplies and Services,"3,360.00",Aug-22
Slough Borough Council,577,Upton Park Hotel,H205,Housing (People) Services,Supplies and Services,"1,372.00",Aug-22
Slough Borough Council,577,Upton Park Hotel,H205,Housing (People) Services,Supplies and Services,833.00,Aug-22
Slough Borough Council,577,Upton Park Hotel,H205,Housing (People) Services,Supplies and Services,"1,372.00",Aug-22
Slough Borough Council,577,Upton Park Hotel,H205,Housing (People) Services,Supplies and Services,"1,372.00",Aug-22
Slough Borough Council,577,Upton Park Hotel,H205,Housing (People) Services,Supplies and Services,833.00,Aug-22
Slough Borough Council,577,Upton Park Hotel,H205,Housing (People) Services,Supplies and Services,"2,184.00",Aug-22
Slough Borough Council,577,Upton Park Hotel,H205,Housing (People) Services,Supplies and Services,735.00,Aug-22
Slough Borough Council,577,Upton Park Hotel,H205,Housing (People) Services,Supplies and Services,"1,372.00",Aug-22
Slough Borough Council,577,Upton Park Hotel,H205,Housing (People) Services,Supplies and Services,"1,372.00",Aug-22
Slough Borough Council,577,Upton Park Hotel,H205,Housing (People) Services,Supplies and Services,"1,372.00",Aug-22
Slough Borough Council,577,Upton Park Hotel,H205,Housing (People) Services,Supplies and Services,"1,372.00",Aug-22
Slough Borough Council,577,Upton Park Hotel,H205,Housing (People) Services,Supplies and Services,"1,372.00",Aug-22
Slough Borough Council,577,Upton Park Hotel,H205,Housing (People) Services,Supplies and Services,"1,372.00",Aug-22
Slough Borough Council,577,Upton Park Hotel,H205,Housing (People) Services,Supplies and Services,539.00,Aug-22
Slough Borough Council,577,Upton Park Hotel,H205,Housing (People) Services,Supplies and Services,"2,184.00",Aug-22
Slough Borough Council,577,Upton Park Hotel,H205,Housing (People) Services,Supplies and Services,"1,372.00",Aug-22
Slough Borough Council,577,Upton Park Hotel,H205,Housing (People) Services,Supplies and Services,"1,372.00",Aug-22
Slough Borough Council,577,Upton Park Hotel,H205,Housing (People) Services,Supplies and Services,"3,024.00",Aug-22
Slough Borough Council,577,Upton Park Hotel,H205,Housing (People) Services,Supplies and Services,"1,372.00",Aug-22
Slough Borough Council,577,Upton Park Hotel,H205,Housing (People) Services,Supplies and Services,"1,372.00",Aug-22
Slough Borough Council,577,Upton Park Hotel,H205,Housing (People) Services,Supplies and Services,"1,372.00",Aug-22
Slough Borough Council,577,Upton Park Hotel,H205,Housing (People) Services,Supplies and Services,"1,372.00",Aug-22
Slough Borough Council,577,Upton Park Hotel,H205,Housing (People) Services,Supplies and Services,"1,372.00",Aug-22
Slough Borough Council,577,Upton Park Hotel,H205,Housing (People) Services,Supplies and Services,"1,372.00",Aug-22
Slough Borough Council,577,Upton Park Hotel,H205,Housing (People) Services,Supplies and Services,"1,372.00",Aug-22
